Workbook

Sheet Orçamento
O3: UNIDADE ESCOLAR | V3: CÓDIGO INEP
O4: CENTRO DE ENSINO EM PERÍODO INTEGRAL NOVO HORIZONTE | V4: 52033945
A6: Nmax | M6: Ajustar altura? | O6: OBRA | S6: DATA | V6: CIDADE
A7: =MAX($C$18:$C$497) -> 3 | M7: SIM | O7: REFORMA E AMPLIAÇÃO | S7: 2020-04-16 | V7: GOIÂNIA
O9: CRE | R9: ENDEREÇO | V9: REFERÊNCIA AGETOP
O10: GOIÂNIA | R10: ALAMEDA DAS PALMEIRAS, QD. 51-A S/N, NOVO HORIZONTE, CEP:74363-810 | V10: DEZ/18 | W10: DESONERADA
O12: ÁREA EXISTENTE (M²) | R12: ÁREA A CONSTRUIR (M²) | S12: ÁREA TOTAL CONSTRUÍDA (M²) | V12: REFERÊNCIA SINAPI
O13: 2584.56 | R13: 98.23 | S13: 2682.79 | V13: JUL/19 | W13: DESONERADA
L15: FILTRO | O15: PLANILHA ORÇAMENTÁRIA
A16: Nível E | B16: Save Nivel | C16: Nível C | D16: Altura | E16: n1 | F16: n2 | G16: n3 | H16: n4 | I16: n5 | J16: Czero | K16: Cnível | L16: ↓ | M16: Nível | N16: Nível Corrigido | O16: ITEM | P16: TABELA | Q16: CODIGO | R16: DESCRIÇÃO DOS SERVIÇOS | S16: UNID | T16: QUANT | U16: MAT | V16: MO | W16: T.SERVIÇO | X16: OBSERVAÇÕES¹
A17: =CHOOSE(1+LOG(1+2*(ORÇAMENTO.Nivel="Nível 1")+4*(ORÇAMENTO.Nivel="Nível 2")+8*(ORÇAMENTO.Nivel="Nível 3")+16*(ORÇAMENTO.Nivel="Nível 4")+32*(ORÇAMENTO.Nivel="Serviço"),2),0,1,2,3,4,"S") -> S | B17: =IF(OR(C17="s",C17=0),OFFSET(B17,-1,0),C17) -> Save Nivel | C17: =IF(OFFSET(C17,-1,0)="L",1,IF(OFFSET(C17,-1,0)=1,2,IF(OR(A17="s",A17=0),"S",IF(AND(OFFSET(C17,-1,0)=2,A17=4),3,IF(AND(OR(OFFSET(C17,-1,0)="s",OFFSET(C17,-1,0)=0),A17<>"s",A17>OFFSET(B17,-1,0)),OFFSET(B17,-1,0),A17))))) -> S | D17: =IF(OR(C17="S",C17=0),0,IF(ISERROR(K17),J17,SMALL(J17:K17,1))) -> 0 | E17: =IF($C17=1,OFFSET(E17,-1,0)+1,OFFSET(E17,-1,0)) -> n1 | F17: =IF($C17=1,0,IF($C17=2,OFFSET(F17,-1,0)+1,OFFSET(F17,-1,0))) -> n2 | G17: =IF(AND($C17<=2,$C17<>0),0,IF($C17=3,OFFSET(G17,-1,0)+1,OFFSET(G17,-1,0))) -> n3 | H17: =IF(AND($C17<=3,$C17<>0),0,IF($C17=4,OFFSET(H17,-1,0)+1,OFFSET(H17,-1,0))) -> n4 | I17: =IF(AND($C17<=4,$C17<>0),0,IF(AND($C17="S",$W17>0),OFFSET(I17,-1,0)+1,OFFSET(I17,-1,0))) -> n5 | J17: =IF(OR($C17="S",$C17=0),0,MATCH(0,OFFSET($D17,1,$C17,ROW($C$497)-ROW($C17)),0)) -> 0 | K17: =IF(OR($C17="S",$C17=0),0,MATCH(OFFSET($D17,0,$C17)+1,OFFSET($D17,1,$C17,ROW($C$497)-ROW($C17)),0)) -> 0 | M17: Serviço | N17: Serviço | O17: - | P17: SINAPI | R17: (sem código) | S17: - | U17: 0 | V17: 0 | W17: 0
A18: 0 | C18: L | D18: =COUNTA(OFFSET(D18,1,0):D$497) -> 478 | E18: =LEFT(O19,1)-1 -> 0 | L18: F | M18: LOTE | N18: LOTE | O18: REFORMA E AMPLIAÇÃO - CENTRO DE ENSINO EM PERÍODO INTEGRAL NOVO HORIZONTE | W18: 0
A19: 1 | B19: =IF(OR(C19="s",C19=0),OFFSET(B19,-1,0),C19) -> 1 | C19: =IF(OFFSET(C19,-1,0)="L",1,IF(OFFSET(C19,-1,0)=1,2,IF(OR(A19="s",A19=0),"S",IF(AND(OFFSET(C19,-1,0)=2,A19=4),3,IF(AND(OR(OFFSET(C19,-1,0)="s",OFFSET(C19,-1,0)=0),A19<>"s",A19>OFFSET(B19,-1,0)),OFFSET(B19,-1,0),A19))))) -> 1 | D19: =IF(OR(C19="S",C19=0),0,IF(ISERROR(K19),J19,SMALL(J19:K19,1))) -> 200 | E19: =IF($C19=1,OFFSET(E19,-1,0)+1,OFFSET(E19,-1,0)) -> 1 | F19: =IF($C19=1,0,IF($C19=2,OFFSET(F19,-1,0)+1,OFFSET(F19,-1,0))) -> 0 | G19: =IF(AND($C19<=2,$C19<>0),0,IF($C19=3,OFFSET(G19,-1,0)+1,OFFSET(G19,-1,0))) -> 0 | H19: =IF(AND($C19<=3,$C19<>0),0,IF($C19=4,OFFSET(H19,-1,0)+1,OFFSET(H19,-1,0))) -> 0 | I19: 0 | J19: =IF(OR($C19="S",$C19=0),0,MATCH(0,OFFSET($D19,1,$C19,ROW($C$497)-ROW($C19)),0)) -> 478 | K19: =IF(OR($C19="S",$C19=0),0,MATCH(OFFSET($D19,0,$C19)+1,OFFSET($D19,1,$C19,ROW($C$497)-ROW($C19)),0)) -> 200 | L19: F | M19: Nível 1 | N19: Nível 1 | O19: 1. | P19: AGETOP | R19: REFORMA | W19: 0
A20: 2 | B20: =IF(OR(C20="s",C20=0),OFFSET(B20,-1,0),C20) -> 2 | C20: =IF(OFFSET(C20,-1,0)="L",1,IF(OFFSET(C20,-1,0)=1,2,IF(OR(A20="s",A20=0),"S",IF(AND(OFFSET(C20,-1,0)=2,A20=4),3,IF(AND(OR(OFFSET(C20,-1,0)="s",OFFSET(C20,-1,0)=0),A20<>"s",A20>OFFSET(B20,-1,0)),OFFSET(B20,-1,0),A20))))) -> 2 | D20: =IF(OR(C20="S",C20=0),0,IF(ISERROR(K20),J20,SMALL(J20:K20,1))) -> 19 | E20: =IF($C20=1,OFFSET(E20,-1,0)+1,OFFSET(E20,-1,0)) -> 1 | F20: =IF($C20=1,0,IF($C20=2,OFFSET(F20,-1,0)+1,OFFSET(F20,-1,0))) -> 1 | G20: =IF(AND($C20<=2,$C20<>0),0,IF($C20=3,OFFSET(G20,-1,0)+1,OFFSET(G20,-1,0))) -> 0 | H20: =IF(AND($C20<=3,$C20<>0),0,IF($C20=4,OFFSET(H20,-1,0)+1,OFFSET(H20,-1,0))) -> 0 | I20: 0 | J20: 199 | K20: 19 | M20: Nível 2 | N20: Nível 2 | O20: - | P20: AGETOP | R20: SERVIÇOS PRELIMINARES | W20: 0
A21: S | B21: 2 | C21: S | D21: 0 | E21: 1 | F21: 1 | G21: 0 | H21: 0 | I21: 0 | J21: 0 | K21: 0 | M21: Serviço | N21: Serviço | O21: - | P21: AGETOP | Q21: 160421 | R21: MAO DE OBRA PARA COBERTURA C/TELHA COLONIAL PLAN | S21: m2 | T21: 883.43 | W21: 0
A22: S | B22: =IF(OR(C22="s",C22=0),OFFSET(B22,-1,0),C22) -> 2 | C22: =IF(OFFSET(C22,-1,0)="L",1,IF(OFFSET(C22,-1,0)=1,2,IF(OR(A22="s",A22=0),"S",IF(AND(OFFSET(C22,-1,0)=2,A22=4),3,IF(AND(OR(OFFSET(C22,-1,0)="s",OFFSET(C22,-1,0)=0),A22<>"s",A22>OFFSET(B22,-1,0)),OFFSET(B22,-1,0),A22))))) -> S | D22: =IF(OR(C22="S",C22=0),0,IF(ISERROR(K22),J22,SMALL(J22:K22,1))) -> 0 | E22: 1 | F22: 1 | G22: 0 | H22: 0 | I22: 0 | J22: 0 | K22: 0 | M22: Serviço | N22: Serviço | O22: - | P22: AGETOP | Q22: 20101 | R22: DEMOLICAO COBERTURA TELHA CERAMICA C/ TRANSP. ATÉ CB. E CARGA | S22: m2 | T22: 883.44 | W22: 0
A23: S | B23: 2 | C23: S | D23: 0 | E23: 1 | F23: 1 | G23: 0 | H23: 0 | I23: 0 | J23: 0 | K23: 0 | M23: Serviço | N23: Serviço | O23: - | P23: SINAPI | Q23: 97650 | R23: REMOÇÃO DE TRAMA DE MADEIRA PARA COBERTURA, DE FORMA MANUAL, SEM REAPROVEITAMENTO. AF_12/2017 | S23: M2 | T23: 249.24 | W23: 0 | X23: Referência: AGETOP - 20136
A24: S | B24: 2 | C24: S | D24: 0 | E24: 1 | F24: 1 | G24: 0 | H24: 0 | I24: 0 | J24: 0 | K24: 0 | M24: Serviço | N24: Serviço | O24: - | P24: AGETOP | Q24: 20103 | R24: DEMOLIÇÃO ESTRUTURA EM MADEIRA TELHADO C/ TRANSP. ATÉ CB. E CARGA | S24: m2 | T24: 830.82 | W24: 0
A25: S | B25: 2 | C25: S | D25: 0 | E25: 1 | F25: 1 | G25: 0 | H25: 0 | I25: 0 | J25: 0 | K25: 0 | M25: Serviço | N25: Serviço | O25: - | P25: SINAPI | Q25: 97644 | R25: REMOÇÃO DE PORTAS, DE FORMA MANUAL, SEM REAPROVEITAMENTO. AF_12/2017 | S25: M2 | T25: 3.36 | W25: 0 | X25: Referência: AGETOP - 20106
A26: S | B26: 2 | C26: S | D26: 0 | E26: 1 | F26: 1 | G26: 0 | H26: 0 | I26: 0 | J26: 0 | K26: 0 | M26: Serviço | N26: Serviço | O26: - | P26: AGETOP | Q26: 20109 | R26: DEM.PISO CIMENT.SOBRE LASTRO CONC.C/TR.ATE CB. E CARGA | S26: m2 | T26: 672.16 | W26: 0
A27: S | B27: 2 | C27: S | D27: 0 | E27: 1 | F27: 1 | G27: 0 | H27: 0 | I27: 0 | J27: 0 | K27: 0 | M27: Serviço | N27: Serviço | O27: - | P27: AGETOP | Q27: 20111 | R27: DEM.PISO CERAM.SOBRE LASTRO CONC.C/TR.CB.E CARGA | S27: m2 | T27: 67.46 | W27: 0
A28: S | B28: 2 | C28: S | D28: 0 | E28: 1 | F28: 1 | G28: 0 | H28: 0 | I28: 0 | J28: 0 | K28: 0 | M28: Serviço | N28: Serviço | O28: - | P28: AGETOP | Q28: 20121 | R28: DEM. MANUAL EM CONCR.SIMPLES C/TR.ATE CB.E CARGA (O.C.) | S28: m3 | T28: 39.72 | W28: 0
A29: S | B29: 2 | C29: S | D29: 0 | E29: 1 | F29: 1 | G29: 0 | H29: 0 | I29: 0 | J29: 0 | K29: 0 | M29: Serviço | N29: Serviço | O29: - | P29: SINAPI | Q29: 97633 | R29: DEMOLIÇÃO DE REVESTIMENTO CERÂMICO, DE FORMA MANUAL, SEM REAPROVEITAMENTO. AF_12/2017 | S29: M2 | T29: 159.49 | W29: 0 | X29: Referência: AGETOP - 20115
A30: S | B30: 2 | C30: S | D30: 0 | E30: 1 | F30: 1 | G30: 0 | H30: 0 | I30: 0 | J30: 0 | K30: 0 | M30: Serviço | N30: Serviço | O30: - | P30: SINAPI | Q30: 97622 | R30: DEMOLIÇÃO DE ALVENARIA DE BLOCO FURADO, DE FORMA MANUAL, SEM REAPROVEITAMENTO. AF_12/2017 | S30: M3 | T30: 0.267 | W30: 0 | X30: Referência: AGETOP - 20118
A31: S | B31: 2 | C31: S | D31: 0 | E31: 1 | F31: 1 | G31: 0 | H31: 0 | I31: 0 | J31: 0 | K31: 0 | M31: Serviço | N31: Serviço | O31: - | P31: COMPOSIÇÃO | Q31: COMP 428_SEE | R31: DEMOLIÇÃO DE ALAMBRADO COM TUBO GALVANIZADO C/ TR. ATE CB. E CARGA | S31: M | T31: 23.06 | W31: 0
A32: S | B32: 2 | C32: S | D32: 0 | E32: 1 | F32: 1 | G32: 0 | H32: 0 | I32: 0 | J32: 0 | K32: 0 | M32: Serviço | N32: Serviço | O32: - | P32: AGETOP | Q32: 20137 | R32: DEMOLIÇAO BACIA SANITARIA C/ TRANSP. ATÉ CB. E CARGA | S32: Un | T32: 15 | W32: 0
A33: S | B33: 2 | C33: S | D33: 0 | E33: 1 | F33: 1 | G33: 0 | H33: 0 | I33: 0 | J33: 0 | K33: 0 | M33: Serviço | N33: Serviço | O33: - | P33: AGETOP | Q33: 20140 | R33: DEMOLIÇAO DE VÁLVULA DE DESCARGA C/ TRANSP. ATÉ CB. E CARGA | S33: Un | T33: 15 | W33: 0
A34: S | B34: 2 | C34: S | D34: 0 | E34: 1 | F34: 1 | G34: 0 | H34: 0 | I34: 0 | J34: 0 | K34: 0 | M34: Serviço | N34: Serviço | O34: - | P34: AGETOP | Q34: 20157 | R34: DEMOLIÇÃO CALHAS/ RUFOS EM CHAPA C/TR.AT.C.B.E CARGA | S34: m2 | T34: 6.31 | W34: 0
A35: S | B35: 2 | C35: S | D35: 0 | E35: 1 | F35: 1 | G35: 0 | H35: 0 | I35: 0 | J35: 0 | K35: 0 | M35: Serviço | N35: Serviço | O35: - | P35: SINAPI | Q35: 98527 | R35: REMOÇÃO DE RAÍZES REMANESCENTES DE TRONCO DE ÁRVORE COM DIÂMETRO MAIOR OU IGUAL A 0,40 M E MENOR QUE 0,60 M.AF_05/2018 | S35: UN | T35: 1 | W35: 0
A36: S | B36: 2 | C36: S | D36: 0 | E36: 1 | F36: 1 | G36: 0 | H36: 0 | I36: 0 | J36: 0 | K36: 0 | M36: Serviço | N36: Serviço | O36: - | P36: AGETOP | Q36: 20148 | R36: DEMOLIÇÃO DE FORRO PVC ( SOMENTE O FORRO) C/ TRANSP. ATÉ CB. E CARGA | S36: m2 | T36: 213.16 | W36: 0
A37: S | B37: 2 | C37: S | D37: 0 | E37: 1 | F37: 1 | G37: 0 | H37: 0 | I37: 0 | J37: 0 | K37: 0 | M37: Serviço | N37: Serviço | O37: - | P37: AGETOP | Q37: 20147 | R37: DEMOLIÇÃO DE FORRO PVC INCLUSIVE ESTRUTURA DE SUSTENTAÇÃO C/ TRANSP. ATÉ CB. E CARGA | S37: m2 | T37: 373.82 | W37: 0
A38: S | B38: 2 | C38: S | D38: 0 | E38: 1 | F38: 1 | G38: 0 | H38: 0 | I38: 0 | J38: 0 | K38: 0 | M38: Serviço | N38: Serviço | O38: - | P38: SINAPI | Q38: 74209/1 | R38: PLACA DE OBRA EM CHAPA DE ACO GALVANIZADO | S38: M2 | T38: 4.5 | W38: 0 | X38: Referência: AGETOP - 21301
A39: 2 | B39: 2 | C39: 2 | D39: 3 | E39: 1 | F39: 2 | G39: 0 | H39: 0 | I39: 0 | J39: 180 | K39: 3 | M39: Nível 2 | N39: Nível 2 | O39: - | P39: AGETOP | R39: TRANSPORTES | S39: - | W39: 0
A40: S | B40: 2 | C40: S | D40: 0 | E40: 1 | F40: 2 | G40: 0 | H40: 0 | I40: 0 | J40: 0 | K40: 0 | M40: Serviço | N40: Serviço | O40: - | P40: SINAPI | Q40: 72900 | R40: TRANSPORTE DE ENTULHO COM CAMINHAO BASCULANTE 6 M3, RODOVIA PAVIMENTADA, DMT 0,5 A 1,0 KM | S40: M3 | T40: 106.85205 | W40: 0
A41: S | B41: 2 | C41: S | D41: 0 | E41: 1 | F41: 2 | G41: 0 | H41: 0 | I41: 0 | J41: 0 | K41: 0 | M41: Serviço | N41: Serviço | O41: - | P41: SINAPI | Q41: 72897 | R41: CARGA MANUAL DE ENTULHO EM CAMINHAO BASCULANTE 6 M3 | S41: M3 | T41: 106.85205 | W41: 0
A42: 2 | B42: 2 | C42: 2 | D42: 2 | E42: 1 | F42: 3 | G42: 0 | H42: 0 | I42: 0 | J42: 177 | K42: 2 | M42: Nível 2 | N42: Nível 2 | O42: - | P42: AGETOP | R42: SERVIÇO EM TERRA | S42: - | W42: 0
A43: =CHOOSE(1+LOG(1+2*(ORÇAMENTO.Nivel="Nível 1")+4*(ORÇAMENTO.Nivel="Nível 2")+8*(ORÇAMENTO.Nivel="Nível 3")+16*(ORÇAMENTO.Nivel="Nível 4")+32*(ORÇAMENTO.Nivel="Serviço"),2),0,1,2,3,4,"S") -> S | B43: 2 | C43: S | D43: 0 | E43: =IF($C43=1,OFFSET(E43,-1,0)+1,OFFSET(E43,-1,0)) -> 1 | F43: =IF($C43=1,0,IF($C43=2,OFFSET(F43,-1,0)+1,OFFSET(F43,-1,0))) -> 3 | G43: =IF(AND($C43<=2,$C43<>0),0,IF($C43=3,OFFSET(G43,-1,0)+1,OFFSET(G43,-1,0))) -> 0 | H43: =IF(AND($C43<=3,$C43<>0),0,IF($C43=4,OFFSET(H43,-1,0)+1,OFFSET(H43,-1,0))) -> 0 | I43: =IF(AND($C43<=4,$C43<>0),0,IF(AND($C43="S",$W43>0),OFFSET(I43,-1,0)+1,OFFSET(I43,-1,0))) -> 0 | J43: 0 | K43: 0 | M43: Serviço | N43: Serviço | O43: - | P43: AGETOP | Q43: 41002 | R43: APILOAMENTO | S43: m2 | T43: 458.54 | W43: 0
A44: =CHOOSE(1+LOG(1+2*(ORÇAMENTO.Nivel="Nível 1")+4*(ORÇAMENTO.Nivel="Nível 2")+8*(ORÇAMENTO.Nivel="Nível 3")+16*(ORÇAMENTO.Nivel="Nível 4")+32*(ORÇAMENTO.Nivel="Serviço"),2),0,1,2,3,4,"S") -> 2 | B44: =IF(OR(C44="s",C44=0),OFFSET(B44,-1,0),C44) -> 2 | C44: =IF(OFFSET(C44,-1,0)="L",1,IF(OFFSET(C44,-1,0)=1,2,IF(OR(A44="s",A44=0),"S",IF(AND(OFFSET(C44,-1,0)=2,A44=4),3,IF(AND(OR(OFFSET(C44,-1,0)="s",OFFSET(C44,-1,0)=0),A44<>"s",A44>OFFSET(B44,-1,0)),OFFSET(B44,-1,0),A44))))) -> 2 | D44: =IF(OR(C44="S",C44=0),0,IF(ISERROR(K44),J44,SMALL(J44:K44,1))) -> 68 | E44: =IF($C44=1,OFFSET(E44,-1,0)+1,OFFSET(E44,-1,0)) -> 1 | F44: =IF($C44=1,0,IF($C44=2,OFFSET(F44,-1,0)+1,OFFSET(F44,-1,0))) -> 4 | G44: =IF(AND($C44<=2,$C44<>0),0,IF($C44=3,OFFSET(G44,-1,0)+1,OFFSET(G44,-1,0))) -> 0 | H44: =IF(AND($C44<=3,$C44<>0),0,IF($C44=4,OFFSET(H44,-1,0)+1,OFFSET(H44,-1,0))) -> 0 | I44: =IF(AND($C44<=4,$C44<>0),0,IF(AND($C44="S",$W44>0),OFFSET(I44,-1,0)+1,OFFSET(I44,-1,0))) -> 0 | J44: 175 | K44: 68 | M44: Nível 2 | N44: Nível 2 | O44: - | R44: INSTALAÇÕES ELÉTRICAS | S44: - | W44: 0
A45: S | B45: 2 | C45: S | D45: 0 | E45: 1 | F45: 4 | G45: 0 | H45: 0 | I45: 0 | J45: 0 | K45: 0 | M45: Serviço | N45: Serviço | O45: - | P45: SINAPI | Q45: 74131/4 | R45: QUADRO DE DISTRIBUICAO DE ENERGIA DE EMBUTIR, EM CHAPA METALICA, PARA 18 DISJUNTORES TERMOMAGNETICOS MONOPOLARES, COM BARRAMENTO TRIFASICO E NEUTRO, FORNECIMENTO E INSTALACAO | S45: UN | T45: 2 | W45: 0
A46: S | B46: 2 | C46: S | D46: 0 | E46: 1 | F46: 4 | G46: 0 | H46: 0 | I46: 0 | J46: 0 | K46: 0 | M46: Serviço | N46: Serviço | O46: - | P46: SINAPI | Q46: 74131/5 | R46: QUADRO DE DISTRIBUICAO DE ENERGIA DE EMBUTIR, EM CHAPA METALICA, PARA 24 DISJUNTORES TERMOMAGNETICOS MONOPOLARES, COM BARRAMENTO TRIFASICO E NEUTRO, FORNECIMENTO E INSTALACAO | S46: UN | T46: 1 | W46: 0
A47: S | B47: 2 | C47: S | D47: 0 | E47: 1 | F47: 4 | G47: 0 | H47: 0 | I47: 0 | J47: 0 | K47: 0 | M47: Serviço | N47: Serviço | O47: - | P47: SINAPI | Q47: 74131/7 | R47: QUADRO DE DISTRIBUICAO DE ENERGIA DE EMBUTIR, EM CHAPA METALICA, PARA 40 DISJUNTORES TERMOMAGNETICOS MONOPOLARES, COM BARRAMENTO TRIFASICO E NEUTRO, FORNECIMENTO E INSTALACAO | S47: UN | T47: 1 | W47: 0
A48: S | B48: 2 | C48: S | D48: 0 | E48: 1 | F48: 4 | G48: 0 | H48: 0 | I48: 0 | J48: 0 | K48: 0 | M48: Serviço | N48: Serviço | O48: - | P48: SINAPI | Q48: 93673 | R48: DISJUNTOR TRIPOLAR TIPO DIN, CORRENTE NOMINAL DE 50A - FORNECIMENTO E INSTALAÇÃO. AF_04/2016 | S48: UN | T48: 1 | W48: 0 | X48: Referência: AGETOP - 71174
A49: S | B49: 2 | C49: S | D49: 0 | E49: 1 | F49: 4 | G49: 0 | H49: 0 | I49: 0 | J49: 0 | K49: 0 | M49: Serviço | N49: Serviço | O49: - | P49: SINAPI | Q49: 93670 | R49: DISJUNTOR TRIPOLAR TIPO DIN, CORRENTE NOMINAL DE 25A - FORNECIMENTO E INSTALAÇÃO. AF_04/2016 | S49: UN | T49: 1 | W49: 0 | X49: Referência: AGETOP - 71173
A50: S | B50: 2 | C50: S | D50: 0 | E50: 1 | F50: 4 | G50: 0 | H50: 0 | I50: 0 | J50: 0 | K50: 0 | M50: Serviço | N50: Serviço | O50: - | P50: AGETOP | Q50: 71175 | R50: DISJUNTOR TRIPOLAR DE 60 A 100-A | S50: Un | T50: 3 | W50: 0
A51: S | B51: 2 | C51: S | D51: 0 | E51: 1 | F51: 4 | G51: 0 | H51: 0 | I51: 0 | J51: =IF(OR($C51="S",$C51=0),0,MATCH(0,OFFSET($D51,1,$C51,ROW($C$497)-ROW($C51)),0)) -> 0 | K51: =IF(OR($C51="S",$C51=0),0,MATCH(OFFSET($D51,0,$C51)+1,OFFSET($D51,1,$C51,ROW($C$497)-ROW($C51)),0)) -> 0 | M51: Serviço | N51: Serviço | O51: - | P51: SINAPI | Q51: 74130/10 | R51: DISJUNTOR TERMOMAGNETICO TRIPOLAR EM CAIXA MOLDADA 175 A 225A 240V, FORNECIMENTO E INSTALACAO | S51: UN | T51: 2 | W51: 0
A52: S | B52: 2 | C52: S | D52: 0 | E52: 1 | F52: 4 | G52: 0 | H52: 0 | I52: 0 | J52: 0 | K52: 0 | M52: Serviço | N52: Serviço | O52: - | P52: SINAPI | Q52: 93656 | R52: DISJUNTOR MONOPOLAR TIPO DIN, CORRENTE NOMINAL DE 25A - FORNECIMENTO E INSTALAÇÃO. AF_04/2016 | S52: UN | T52: 30 | W52: 0
A53: S | B53: 2 | C53: S | D53: 0 | E53: 1 | F53: 4 | G53: 0 | H53: 0 | I53: 0 | J53: 0 | K53: 0 | M53: Serviço | N53: Serviço | O53: - | P53: SINAPI | Q53: 93654 | R53: DISJUNTOR MONOPOLAR TIPO DIN, CORRENTE NOMINAL DE 16A - FORNECIMENTO E INSTALAÇÃO. AF_04/2016 | S53: UN | T53: 22 | W53: 0
A54: S | B54: 2 | C54: S | D54: 0 | E54: 1 | F54: 4 | G54: 0 | H54: 0 | I54: 0 | J54: 0 | K54: 0 | M54: Serviço | N54: Serviço | O54: - | P54: SINAPI | Q54: 93653 | R54: DISJUNTOR MONOPOLAR TIPO DIN, CORRENTE NOMINAL DE 10A - FORNECIMENTO E INSTALAÇÃO. AF_04/2016 | S54: UN | T54: 25 | W54: 0
A55: S | B55: 2 | C55: S | D55: 0 | E55: 1 | F55: 4 | G55: 0 | H55: 0 | I55: 0 | J55: 0 | K55: 0 | M55: Serviço | N55: Serviço | O55: - | P55: AGETOP | Q55: 71184 | R55: DISPOSITIVO DE PROTEÇÃO CONTRA SURTOS (D.P.S.) 275V DE 8 A 40KA | S55: Un | T55: 3 | W55: 0
A56: S | B56: 2 | C56: S | D56: 0 | E56: 1 | F56: 4 | G56: 0 | H56: 0 | I56: 0 | J56: 0 | K56: 0 | M56: Serviço | N56: Serviço | O56: - | P56: SINAPI | Q56: 91926 | R56: CABO DE COBRE FLEXÍVEL ISOLADO, 2,5 MM², ANTI-CHAMA 450/750 V, PARA CIRCUITOS TERMINAIS - FORNECIMENTO E INSTALAÇÃO. AF_12/2015 | S56: M | T56: 3071.04 | W56: 0 | X56: Referência: AGETOP - 70563
A57: S | B57: 2 | C57: S | D57: 0 | E57: 1 | F57: 4 | G57: 0 | H57: 0 | I57: 0 | J57: 0 | K57: 0 | M57: Serviço | N57: Serviço | O57: - | P57: SINAPI | Q57: 91928 | R57: CABO DE COBRE FLEXÍVEL ISOLADO, 4 MM², ANTI-CHAMA 450/750 V, PARA CIRCUITOS TERMINAIS - FORNECIMENTO E INSTALAÇÃO. AF_12/2015 | S57: M | T57: 2842.72 | W57: 0 | X57: Referência: AGETOP - 70564
A58: S | B58: 2 | C58: S | D58: 0 | E58: 1 | F58: 4 | G58: 0 | H58: 0 | I58: 0 | J58: 0 | K58: 0 | M58: Serviço | N58: Serviço | O58: - | P58: SINAPI | Q58: 91930 | R58: CABO DE COBRE FLEXÍVEL ISOLADO, 6 MM², ANTI-CHAMA 450/750 V, PARA CIRCUITOS TERMINAIS - FORNECIMENTO E INSTALAÇÃO. AF_12/2015 | S58: M | T58: 1703.35 | W58: 0 | X58: Referência: AGETOP - 70565
A59: S | B59: 2 | C59: S | D59: 0 | E59: 1 | F59: 4 | G59: 0 | H59: 0 | I59: 0 | J59: 0 | K59: 0 | M59: Serviço | N59: Serviço | O59: - | P59: SINAPI | Q59: 92979 | R59: CABO DE COBRE FLEXÍVEL ISOLADO, 10 MM², ANTI-CHAMA 450/750 V, PARA DISTRIBUIÇÃO - FORNECIMENTO E INSTALAÇÃO. AF_12/2015 | S59: M | T59: 548.75 | W59: 0
A60: S | B60: 2 | C60: S | D60: 0 | E60: 1 | F60: 4 | G60: 0 | H60: 0 | I60: 0 | J60: 0 | K60: 0 | M60: Serviço | N60: Serviço | O60: - | P60: SINAPI | Q60: 92981 | R60: CABO DE COBRE FLEXÍVEL ISOLADO, 16 MM², ANTI-CHAMA 450/750 V, PARA DISTRIBUIÇÃO - FORNECIMENTO E INSTALAÇÃO. AF_12/2015 | S60: M | T60: 1.5 | W60: 0
A61: S | B61: 2 | C61: S | D61: 0 | E61: 1 | F61: 4 | G61: 0 | H61: 0 | I61: 0 | J61: 0 | K61: 0 | M61: Serviço | N61: Serviço | O61: - | P61: SINAPI | Q61: 92990 | R61: CABO DE COBRE FLEXÍVEL ISOLADO, 70 MM², ANTI-CHAMA 0,6/1,0 KV, PARA DISTRIBUIÇÃO - FORNECIMENTO E INSTALAÇÃO. AF_12/2015 | S61: M | T61: 530 | W61: 0 | X61: Referência: AGETOP - 70514
A62: S | B62: 2 | C62: S | D62: 0 | E62: 1 | F62: 4 | G62: 0 | H62: 0 | I62: 0 | J62: 0 | K62: 0 | M62: Serviço | N62: Serviço | O62: - | P62: SINAPI | Q62: 92986 | R62: CABO DE COBRE FLEXÍVEL ISOLADO, 35 MM², ANTI-CHAMA 0,6/1,0 KV, PARA DISTRIBUIÇÃO - FORNECIMENTO E INSTALAÇÃO. AF_12/2015 | S62: M | T62: 150 | W62: 0 | X62: Referência: AGETOP - 70512
A63: S | B63: 2 | C63: S | D63: 0 | E63: 1 | F63: 4 | G63: 0 | H63: 0 | I63: 0 | J63: 0 | K63: 0 | M63: Serviço | N63: Serviço | O63: - | P63: AGETOP | Q63: 70541 | R63: CABO DE COBRE NU No. 16 MM2 (6,94 M/KG) | S63: M | T63: 20 | W63: 0
A64: S | B64: 2 | C64: S | D64: 0 | E64: 1 | F64: 4 | G64: 0 | H64: 0 | I64: 0 | J64: 0 | K64: 0 | M64: Serviço | N64: Serviço | O64: - | P64: AGETOP | Q64: 70544 | R64: CABO DE COBRE NÚ No. 50 MM2 | S64: M | T64: 50 | W64: 0
A65: S | B65: 2 | C65: S | D65: 0 | E65: 1 | F65: 4 | G65: 0 | H65: 0 | I65: 0 | J65: 0 | K65: 0 | M65: Serviço | N65: Serviço | O65: - | P65: SINAPI | Q65: 91834 | R65: ELETRODUTO FLEXÍVEL CORRUGADO, PVC, DN 25 MM (3/4"), PARA CIRCUITOS TERMINAIS, INSTALADO EM FORRO - FORNECIMENTO E INSTALAÇÃO. AF_12/2015 | S65: M | T65: 1555.65 | W65: 0 | X65: Referência: AGETOP - 71194
A66: S | B66: 2 | C66: S | D66: 0 | E66: 1 | F66: 4 | G66: 0 | H66: 0 | I66: 0 | J66: 0 | K66: 0 | M66: Serviço | N66: Serviço | O66: - | P66: SINAPI | Q66: 91836 | R66: ELETRODUTO FLEXÍVEL CORRUGADO, PVC, DN 32 MM (1"), PARA CIRCUITOS TERMINAIS, INSTALADO EM FORRO - FORNECIMENTO E INSTALAÇÃO. AF_12/2015 | S66: M | T66: 349.45 | W66: 0 | X66: Referência: AGETOP - 71195
A67: S | B67: 2 | C67: S | D67: 0 | E67: 1 | F67: 4 | G67: 0 | H67: 0 | I67: 0 | J67: 0 | K67: 0 | M67: Serviço | N67: Serviço | O67: - | P67: AGETOP | Q67: 71196 | R67: ELETRODUTO PVC FLEXÍVEL - MANGUEIRA CORRUGADA REFORÇADA - DIAM. 40MM | S67: M | T67: 201.36 | W67: 0
A68: S | B68: 2 | C68: S | D68: 0 | E68: 1 | F68: 4 | G68: 0 | H68: 0 | I68: 0 | J68: 0 | K68: 0 | M68: Serviço | N68: Serviço | O68: - | P68: AGETOP | Q68: 71197 | R68: ELETRODUTO PVC FLEXÍVEL - MANGUEIRA CORRUGADA REFORÇADA - DIAM. 50MM | S68: M | T68: 50 | W68: 0
A69: S | B69: 2 | C69: S | D69: 0 | E69: 1 | F69: 4 | G69: 0 | H69: 0 | I69: 0 | J69: 0 | K69: 0 | M69: Serviço | N69: Serviço | O69: - | P69: AGETOP | Q69: 71198 | R69: ELETRODUTO PVC FLEXÍVEL - MANGUEIRA CORRUGADA REFORÇADA - DIAM. 60MM | S69: M | T69: 53.5 | W69: 0
A70: S | B70: 2 | C70: S | D70: 0 | E70: 1 | F70: 4 | G70: 0 | H70: 0 | I70: 0 | J70: 0 | K70: 0 | M70: Serviço | N70: Serviço | O70: - | P70: AGETOP | Q70: 71199 | R70: ELETRODUTO PVC FLEXÍVEL - MANGUEIRA CORRUGADA REFORÇADA - DIAM. 75MM | S70: M | T70: 150 | W70: 0
A71: S | B71: 2 | C71: S | D71: 0 | E71: 1 | F71: 4 | G71: 0 | H71: 0 | I71: 0 | J71: 0 | K71: 0 | M71: Serviço | N71: Serviço | O71: - | P71: SINAPI | Q71: 91867 | R71: ELETRODUTO RÍGIDO ROSCÁVEL, PVC, DN 25 MM (3/4"), PARA CIRCUITOS TERMINAIS, INSTALADO EM LAJE - FORNECIMENTO E INSTALAÇÃO. AF_12/2015 | S71: M | T71: 234 | W71: 0 | X71: Referência: AGETOP - 71201
A72: S | B72: 2 | C72: S | D72: 0 | E72: 1 | F72: 4 | G72: 0 | H72: 0 | I72: 0 | J72: 0 | K72: 0 | M72: Serviço | N72: Serviço | O72: - | P72: SINAPI | Q72: 91868 | R72: ELETRODUTO RÍGIDO ROSCÁVEL, PVC, DN 32 MM (1"), PARA CIRCUITOS TERMINAIS, INSTALADO EM LAJE - FORNECIMENTO E INSTALAÇÃO. AF_12/2015 | S72: M | T72: 53 | W72: 0 | X72: Referência: AGETOP - 71202
A73: S | B73: 2 | C73: S | D73: 0 | E73: 1 | F73: 4 | G73: 0 | H73: 0 | I73: 0 | J73: 0 | K73: 0 | M73: Serviço | N73: Serviço | O73: - | P73: SINAPI | Q73: 93008 | R73: ELETRODUTO RÍGIDO ROSCÁVEL, PVC, DN 50 MM (1 1/2") - FORNECIMENTO E INSTALAÇÃO. AF_12/2015 | S73: M | T73: 30 | W73: 0
A74: S | B74: 2 | C74: S | D74: 0 | E74: 1 | F74: 4 | G74: 0 | H74: 0 | I74: 0 | J74: 0 | K74: 0 | M74: Serviço | N74: Serviço | O74: - | P74: SINAPI | Q74: 93010 | R74: ELETRODUTO RÍGIDO ROSCÁVEL, PVC, DN 75 MM (2 1/2") - FORNECIMENTO E INSTALAÇÃO. AF_12/2015 | S74: M | T74: 8 | W74: 0
A75: S | B75: 2 | C75: S | D75: 0 | E75: 1 | F75: 4 | G75: 0 | H75: 0 | I75: 0 | J75: 0 | K75: 0 | M75: Serviço | N75: Serviço | O75: - | P75: SINAPI | Q75: 93009 | R75: ELETRODUTO RÍGIDO ROSCÁVEL, PVC, DN 60 MM (2") - FORNECIMENTO E INSTALAÇÃO. AF_12/2015 | S75: M | T75: 9 | W75: 0
A76: S | B76: 2 | C76: S | D76: 0 | E76: 1 | F76: 4 | G76: 0 | H76: 0 | I76: 0 | J76: 0 | K76: 0 | M76: Serviço | N76: Serviço | O76: - | P76: SINAPI | Q76: 93012 | R76: ELETRODUTO RÍGIDO ROSCÁVEL, PVC, DN 110 MM (4") - FORNECIMENTO E INSTALAÇÃO. AF_12/2015 | S76: M | T76: 10 | W76: 0
A77: S | B77: 2 | C77: S | D77: 0 | E77: 1 | F77: 4 | G77: 0 | H77: 0 | I77: 0 | J77: 0 | K77: 0 | M77: Serviço | N77: Serviço | O77: - | P77: AGETOP | Q77: 70351 | R77: BRACADEIRA METALICA TIPO "U" DIAM. 3/4" | S77: Un | T77: 78 | W77: 0
A78: S | B78: 2 | C78: S | D78: 0 | E78: 1 | F78: 4 | G78: 0 | H78: 0 | I78: 0 | J78: 0 | K78: 0 | M78: Serviço | N78: Serviço | O78: - | P78: AGETOP | Q78: 70352 | R78: BRACADEIRA METALICA TIPO "U" DIAM. 1" | S78: Un | T78: 18 | W78: 0
A79: S | B79: 2 | C79: S | D79: 0 | E79: 1 | F79: 4 | G79: 0 | H79: 0 | I79: 0 | J79: 0 | K79: 0 | M79: Serviço | N79: Serviço | O79: - | P79: AGETOP | Q79: 70354 | R79: BRACADEIRA METALICA TIPO "U" DIAM. 1.1/2" | S79: Un | T79: 10 | W79: 0
A80: S | B80: 2 | C80: S | D80: 0 | E80: 1 | F80: 4 | G80: 0 | H80: 0 | I80: 0 | J80: 0 | K80: 0 | M80: Serviço | N80: Serviço | O80: - | P80: AGETOP | Q80: 70355 | R80: BRACADEIRA METALICA TIPO "U" DIAM. 2" | S80: Un | T80: 3 | W80: 0
A81: S | B81: 2 | C81: S | D81: 0 | E81: 1 | F81: 4 | G81: 0 | H81: 0 | I81: 0 | J81: 0 | K81: 0 | M81: Serviço | N81: Serviço | O81: - | P81: AGETOP | Q81: 70356 | R81: BRACADEIRA METALICA TIPO "U" DIAM. 2.1/2" | S81: Un | T81: 3 | W81: 0
A82: S | B82: 2 | C82: S | D82: 0 | E82: 1 | F82: 4 | G82: 0 | H82: 0 | I82: 0 | J82: 0 | K82: 0 | M82: Serviço | N82: Serviço | O82: - | P82: SINAPI | Q82: 91879 | R82: LUVA PARA ELETRODUTO, PVC, ROSCÁVEL, DN 25 MM (3/4"), PARA CIRCUITOS TERMINAIS, INSTALADA EM LAJE - FORNECIMENTO E INSTALAÇÃO. AF_12/2015 | S82: UN | T82: 500 | W82: 0 | X82: Referência: AGETOP - 71741
A83: S | B83: 2 | C83: S | D83: 0 | E83: 1 | F83: 4 | G83: 0 | H83: 0 | I83: 0 | J83: =IF(OR($C83="S",$C83=0),0,MATCH(0,OFFSET($D83,1,$C83,ROW($C$497)-ROW($C83)),0)) -> 0 | K83: =IF(OR($C83="S",$C83=0),0,MATCH(OFFSET($D83,0,$C83)+1,OFFSET($D83,1,$C83,ROW($C$497)-ROW($C83)),0)) -> 0 | M83: Serviço | N83: Serviço | O83: - | P83: SINAPI | Q83: 91880 | R83: LUVA PARA ELETRODUTO, PVC, ROSCÁVEL, DN 32 MM (1"), PARA CIRCUITOS TERMINAIS, INSTALADA EM LAJE - FORNECIMENTO E INSTALAÇÃO. AF_12/2015 | S83: UN | T83: 117 | W83: 0 | X83: Referência: AGETOP - 71742
A84: S | B84: 2 | C84: S | D84: 0 | E84: 1 | F84: 4 | G84: 0 | H84: 0 | I84: 0 | J84: 0 | K84: 0 | M84: Serviço | N84: Serviço | O84: - | P84: SINAPI | Q84: 93013 | R84: LUVA PARA ELETRODUTO, PVC, ROSCÁVEL, DN 50 MM (1 1/2") - FORNECIMENTO E INSTALAÇÃO. AF_12/2015 | S84: UN | T84: 68 | W84: 0 | X84: Referência: AGETOP - 71744
A85: S | B85: 2 | C85: S | D85: 0 | E85: 1 | F85: 4 | G85: 0 | H85: 0 | I85: 0 | J85: 0 | K85: 0 | M85: Serviço | N85: Serviço | O85: - | P85: SINAPI | Q85: 93014 | R85: LUVA PARA ELETRODUTO, PVC, ROSCÁVEL, DN 60 MM (2") - FORNECIMENTO E INSTALAÇÃO. AF_12/2015 | S85: UN | T85: 17 | W85: 0 | X85: Referência: AGETOP - 71745
A86: S | B86: 2 | C86: S | D86: 0 | E86: 1 | F86: 4 | G86: 0 | H86: 0 | I86: 0 | J86: 0 | K86: 0 | M86: Serviço | N86: Serviço | O86: - | P86: SINAPI | Q86: 93015 | R86: LUVA PARA ELETRODUTO, PVC, ROSCÁVEL, DN 75 MM (2 1/2") - FORNECIMENTO E INSTALAÇÃO. AF_12/2015 | S86: UN | T86: 17 | W86: 0
A87: =CHOOSE(1+LOG(1+2*(ORÇAMENTO.Nivel="Nível 1")+4*(ORÇAMENTO.Nivel="Nível 2")+8*(ORÇAMENTO.Nivel="Nível 3")+16*(ORÇAMENTO.Nivel="Nível 4")+32*(ORÇAMENTO.Nivel="Serviço"),2),0,1,2,3,4,"S") -> S | B87: 2 | C87: S | D87: 0 | E87: 1 | F87: 4 | G87: 0 | H87: 0 | I87: =IF(AND($C87<=4,$C87<>0),0,IF(AND($C87="S",$W87>0),OFFSET(I87,-1,0)+1,OFFSET(I87,-1,0))) -> 0 | J87: 0 | K87: 0 | M87: Serviço | N87: Serviço | O87: - | P87: SINAPI | Q87: 95801 | R87: CONDULETE DE ALUMÍNIO, TIPO X, PARA ELETRODUTO DE AÇO GALVANIZADO DN 20 MM (3/4''), APARENTE - FORNECIMENTO E INSTALAÇÃO. AF_11/2016_P | S87: UN | T87: 260 | W87: 0 | X87: Referência: AGETOP - 70929
A88: S | B88: 2 | C88: S | D88: 0 | E88: 1 | F88: 4 | G88: 0 | H88: 0 | I88: 0 | J88: 0 | K88: 0 | M88: Serviço | N88: Serviço | O88: - | P88: SINAPI | Q88: 91902 | R88: CURVA 90 GRAUS PARA ELETRODUTO, PVC, ROSCÁVEL, DN 25 MM (3/4"), PARA CIRCUITOS TERMINAIS, INSTALADA EM LAJE - FORNECIMENTO E INSTALAÇÃO. AF_12/2015 | S88: UN | T88: 50 | W88: 0 | X88: Referência: AGETOP - 71141
A89: S | B89: 2 | C89: S | D89: 0 | E89: 1 | F89: 4 | G89: 0 | H89: 0 | I89: 0 | J89: 0 | K89: 0 | M89: Serviço | N89: Serviço | O89: - | P89: SINAPI | Q89: 91905 | R89: CURVA 90 GRAUS PARA ELETRODUTO, PVC, ROSCÁVEL, DN 32 MM (1"), PARA CIRCUITOS TERMINAIS, INSTALADA EM LAJE - FORNECIMENTO E INSTALAÇÃO. AF_12/2015 | S89: UN | T89: 20 | W89: 0 | X89: Referência: AGETOP - 71142
A90: S | B90: 2 | C90: S | D90: 0 | E90: =IF($C90=1,OFFSET(E90,-1,0)+1,OFFSET(E90,-1,0)) -> 1 | F90: =IF($C90=1,0,IF($C90=2,OFFSET(F90,-1,0)+1,OFFSET(F90,-1,0))) -> 4 | G90: =IF(AND($C90<=2,$C90<>0),0,IF($C90=3,OFFSET(G90,-1,0)+1,OFFSET(G90,-1,0))) -> 0 | H90: =IF(AND($C90<=3,$C90<>0),0,IF($C90=4,OFFSET(H90,-1,0)+1,OFFSET(H90,-1,0))) -> 0 | I90: 0 | J90: 0 | K90: 0 | M90: Serviço | N90: Serviço | O90: - | P90: AGETOP | Q90: 71124 | R90: CURVA 90 GRAUS AÇO ZINCADO DIÂMETRO 1.1/2" | S90: Un | T90: 15 | W90: 0
A91: S | B91: 2 | C91: S | D91: 0 | E91: 1 | F91: 4 | G91: 0 | H91: 0 | I91: 0 | J91: 0 | K91: 0 | M91: Serviço | N91: Serviço | O91: - | P91: AGETOP | Q91: 71125 | R91: CURVA 90 GRAUS AÇO ZINCADO DIÂMETRO 2" | S91: Un | T91: 10 | W91: 0
A92: S | B92: 2 | C92: S | D92: 0 | E92: 1 | F92: 4 | G92: 0 | H92: 0 | I92: 0 | J92: 0 | K92: 0 | M92: Serviço | N92: Serviço | O92: - | P92: AGETOP | Q92: 71126 | R92: CURVA 90 GRAUS AÇO ZINCADO DIÂMETRO 2.1/2" | S92: Un | T92: 5 | W92: 0
A93: S | B93: 2 | C93: S | D93: 0 | E93: 1 | F93: 4 | G93: 0 | H93: 0 | I93: 0 | J93: 0 | K93: 0 | M93: Serviço | N93: Serviço | O93: - | P93: SINAPI | Q93: 92870 | R93: CAIXA RETANGULAR 4" X 4" ALTA (2,00 M DO PISO), METÁLICA, INSTALADA EM PAREDE - FORNECIMENTO E INSTALAÇÃO. AF_12/2015 | S93: UN | T93: 286 | W93: 0
A94: S | B94: 2 | C94: S | D94: 0 | E94: 1 | F94: 4 | G94: 0 | H94: 0 | I94: 0 | J94: 0 | K94: 0 | M94: Serviço | N94: Serviço | O94: - | P94: SINAPI | Q94: 91953 | R94: INTERRUPTOR SIMPLES (1 MÓDULO), 10A/250V, INCLUINDO SUPORTE E PLACA - FORNECIMENTO E INSTALAÇÃO. AF_12/2015 | S94: UN | T94: 20 | W94: 0 | X94: Referência: AGETOP - 71440
A95: S | B95: =IF(OR(C95="s",C95=0),OFFSET(B95,-1,0),C95) -> 2 | C95: =IF(OFFSET(C95,-1,0)="L",1,IF(OFFSET(C95,-1,0)=1,2,IF(OR(A95="s",A95=0),"S",IF(AND(OFFSET(C95,-1,0)=2,A95=4),3,IF(AND(OR(OFFSET(C95,-1,0)="s",OFFSET(C95,-1,0)=0),A95<>"s",A95>OFFSET(B95,-1,0)),OFFSET(B95,-1,0),A95))))) -> S | D95: =IF(OR(C95="S",C95=0),0,IF(ISERROR(K95),J95,SMALL(J95:K95,1))) -> 0 | E95: 1 | F95: 4 | G95: 0 | H95: 0 | I95: 0 | J95: 0 | K95: 0 | M95: Serviço | N95: Serviço | O95: - | P95: SINAPI | Q95: 91959 | R95: INTERRUPTOR SIMPLES (2 MÓDULOS), 10A/250V, INCLUINDO SUPORTE E PLACA - FORNECIMENTO E INSTALAÇÃO. AF_12/2015 | S95: UN | T95: 5 | W95: 0 | X95: Referência: AGETOP - 71441
A96: S | B96: 2 | C96: S | D96: 0 | E96: 1 | F96: 4 | G96: 0 | H96: 0 | I96: 0 | J96: 0 | K96: 0 | M96: Serviço | N96: Serviço | O96: - | P96: SINAPI | Q96: 91967 | R96: INTERRUPTOR SIMPLES (3 MÓDULOS), 10A/250V, INCLUINDO SUPORTE E PLACA - FORNECIMENTO E INSTALAÇÃO. AF_12/2015 | S96: UN | T96: 20 | W96: 0 | X96: Referência: AGETOP - 71442
A97: S | B97: 2 | C97: S | D97: 0 | E97: 1 | F97: 4 | G97: 0 | H97: 0 | I97: 0 | J97: 0 | K97: 0 | M97: Serviço | N97: Serviço | O97: - | P97: SINAPI | Q97: 92000 | R97: TOMADA BAIXA DE EMBUTIR (1 MÓDULO), 2P+T 10 A, INCLUINDO SUPORTE E PLACA - FORNECIMENTO E INSTALAÇÃO. AF_12/2015 | S97: UN | T97: 83 | W97: 0 | X97: Referência: AGETOP - 72578
A98: S | B98: 2 | C98: S | D98: 0 | E98: 1 | F98: 4 | G98: 0 | H98: 0 | I98: 0 | J98: 0 | K98: 0 | M98: Serviço | N98: Serviço | O98: - | P98: SINAPI | Q98: 91996 | R98: TOMADA MÉDIA DE EMBUTIR (1 MÓDULO), 2P+T 10 A, INCLUINDO SUPORTE E PLACA - FORNECIMENTO E INSTALAÇÃO. AF_12/2015 | S98: UN | T98: 12 | W98: 0 | X98: Referência: AGETOP - 72578
A99: S | B99: 2 | C99: S | D99: 0 | E99: 1 | F99: 4 | G99: 0 | H99: 0 | I99: 0 | J99: 0 | K99: 0 | M99: Serviço | N99: Serviço | O99: - | P99: SINAPI | Q99: 91993 | R99: TOMADA ALTA DE EMBUTIR (1 MÓDULO), 2P+T 20 A, INCLUINDO SUPORTE E PLACA - FORNECIMENTO E INSTALAÇÃO. AF_12/2015 | S99: UN | T99: 46 | W99: 0 | X99: Referência: AGETOP - 72585
A100: S | B100: 2 | C100: S | D100: 0 | E100: 1 | F100: 4 | G100: 0 | H100: 0 | I100: 0 | J100: 0 | K100: 0 | M100: Serviço | N100: Serviço | O100: - | P100: SINAPI | Q100: 97594 | R100: LUMINÁRIA TIPO SPOT, DE SOBREPOR, COM 2 LÂMPADAS DE 15 W - FORNECIMENTO E INSTALAÇÃO. AF_11/2017 | S100: UN | T100: 282 | W100: 0
A101: S | B101: 2 | C101: S | D101: 0 | E101: 1 | F101: 4 | G101: 0 | H101: 0 | I101: 0 | J101: 0 | K101: 0 | M101: Serviço | N101: Serviço | O101: - | P101: SINAPI | Q101: 73831/9 | R101: LAMPADA DE VAPOR DE SODIO DE 400WX220V - FORNECIMENTO E INSTALACAO | S101: UN | T101: 12 | W101: 0
A102: S | B102: 2 | C102: S | D102: 0 | E102: 1 | F102: 4 | G102: 0 | H102: 0 | I102: 0 | J102: 0 | K102: 0 | M102: Serviço | N102: Serviço | O102: - | P102: SINAPI | Q102: 97610 | R102: LÂMPADA COMPACTA DE LED 10 W, BASE E27 - FORNECIMENTO E INSTALAÇÃO. AF_11/2017 | S102: UN | T102: 564 | W102: 0
A103: S | B103: 2 | C103: S | D103: 0 | E103: 1 | F103: 4 | G103: 0 | H103: 0 | I103: 0 | J103: 0 | K103: 0 | M103: Serviço | N103: Serviço | O103: - | P103: SINAPI | Q103: 97601 | R103: REFLETOR EM ALUMÍNIO COM SUPORTE E ALÇA, LÂMPADA 250 W - FORNECIMENTO E INSTALAÇÃO. AF_11/2017 | S103: UN | T103: 2 | W103: 0
A104: S | B104: 2 | C104: S | D104: 0 | E104: 1 | F104: 4 | G104: 0 | H104: 0 | I104: 0 | J104: 0 | K104: 0 | M104: Serviço | N104: Serviço | O104: - | P104: SINAPI | Q104: 73831/5 | R104: LAMPADA MISTA DE 250W - FORNECIMENTO E INSTALACAO | S104: UN | T104: 7 | W104: 0
A105: S | B105: 2 | C105: S | D105: 0 | E105: 1 | F105: 4 | G105: 0 | H105: 0 | I105: 0 | J105: 0 | K105: 0 | M105: Serviço | N105: Serviço | O105: - | P105: SINAPI | Q105: 83481 | R105: REATOR PARA LAMPADA VAPOR DE MERCURIO 250W USO EXTERNO | S105: UN | T105: 7 | W105: 0
A106: S | B106: 2 | C106: S | D106: 0 | E106: 1 | F106: 4 | G106: 0 | H106: 0 | I106: 0 | J106: 0 | K106: 0 | M106: Serviço | N106: Serviço | O106: - | P106: SINAPI | Q106: 97889 | R106: CAIXA ENTERRADA ELÉTRICA RETANGULAR, EM ALVENARIA COM TIJOLOS CERÂMICOS MACIÇOS, FUNDO COM BRITA, DIMENSÕES INTERNAS: 0,8X0,8X0,6 M. AF_05/2018 | S106: UN | T106: 5 | W106: 0
A107: S | B107: 2 | C107: S | D107: 0 | E107: 1 | F107: 4 | G107: 0 | H107: 0 | I107: 0 | J107: 0 | K107: 0 | M107: Serviço | N107: Serviço | O107: - | P107: SINAPI | Q107: 6171 | R107: TAMPA DE CONCRETO ARMADO 60X60X5CM PARA CAIXA | S107: UN | T107: 8 | W107: 0
A108: S | B108: 2 | C108: S | D108: 0 | E108: 1 | F108: 4 | G108: 0 | H108: 0 | I108: 0 | J108: 0 | K108: 0 | M108: Serviço | N108: Serviço | O108: - | P108: AGETOP | Q108: 71861 | R108: PARAFUSO P/BUCHA S-6 | S108: Un | T108: 500 | W108: 0
A109: S | B109: 2 | C109: S | D109: 0 | E109: 1 | F109: 4 | G109: 0 | H109: 0 | I109: 0 | J109: 0 | K109: 0 | M109: Serviço | N109: Serviço | O109: - | P109: AGETOP | Q109: 70647 | R109: CAIXA DE PASSAGEM METÁLICA DE EMBUTIR 30X30X12 CM | S109: Un | T109: 6 | W109: 0
A110: S | B110: 2 | C110: S | D110: 0 | E110: 1 | F110: 4 | G110: 0 | H110: 0 | I110: 0 | J110: 0 | K110: 0 | M110: Serviço | N110: Serviço | O110: - | P110: AGETOP | Q110: 70391 | R110: BUCHA DE NYLON S-6 | S110: Un | T110: 500 | W110: 0
A111: S | B111: 2 | C111: S | D111: 0 | E111: 1 | F111: 4 | G111: 0 | H111: 0 | I111: 0 | J111: 0 | K111: 0 | M111: Serviço | N111: Serviço | O111: - | P111: AGETOP | Q111: 20162 | R111: DEMOLIÇÃO DAS INSTALAÇÕES ELÉTRICAS E AFINS C/ TRANSP. ATÉ CB. E CARGA | S111: H | T111: 200 | W111: 0
A112: =CHOOSE(1+LOG(1+2*(ORÇAMENTO.Nivel="Nível 1")+4*(ORÇAMENTO.Nivel="Nível 2")+8*(ORÇAMENTO.Nivel="Nível 3")+16*(ORÇAMENTO.Nivel="Nível 4")+32*(ORÇAMENTO.Nivel="Serviço"),2),0,1,2,3,4,"S") -> 2 | B112: =IF(OR(C112="s",C112=0),OFFSET(B112,-1,0),C112) -> 2 | C112: =IF(OFFSET(C112,-1,0)="L",1,IF(OFFSET(C112,-1,0)=1,2,IF(OR(A112="s",A112=0),"S",IF(AND(OFFSET(C112,-1,0)=2,A112=4),3,IF(AND(OR(OFFSET(C112,-1,0)="s",OFFSET(C112,-1,0)=0),A112<>"s",A112>OFFSET(B112,-1,0)),OFFSET(B112,-1,0),A112))))) -> 2 | D112: =IF(OR(C112="S",C112=0),0,IF(ISERROR(K112),J112,SMALL(J112:K112,1))) -> 21 | E112: =IF($C112=1,OFFSET(E112,-1,0)+1,OFFSET(E112,-1,0)) -> 1 | F112: =IF($C112=1,0,IF($C112=2,OFFSET(F112,-1,0)+1,OFFSET(F112,-1,0))) -> 5 | G112: =IF(AND($C112<=2,$C112<>0),0,IF($C112=3,OFFSET(G112,-1,0)+1,OFFSET(G112,-1,0))) -> 0 | H112: =IF(AND($C112<=3,$C112<>0),0,IF($C112=4,OFFSET(H112,-1,0)+1,OFFSET(H112,-1,0))) -> 0 | I112: =IF(AND($C112<=4,$C112<>0),0,IF(AND($C112="S",$W112>0),OFFSET(I112,-1,0)+1,OFFSET(I112,-1,0))) -> 0 | J112: 107 | K112: 21 | M112: Nível 2 | N112: Nível 2 | O112: - | P112: AGETOP | R112: INSTALAÇÕES HIDROSSANITÁRIAS | S112: - | W112: 0
A113: 3 | B113: 3 | C113: 3 | D113: 10 | E113: 1 | F113: 5 | G113: 1 | H113: 0 | I113: 0 | J113: 20 | K113: 10 | M113: Nível 3 | N113: Nível 3 | O113: - | R113: PEÇAS E ACESSÓRIOS | S113: - | W113: 0
A114: S | B114: 3 | C114: S | D114: 0 | E114: 1 | F114: 5 | G114: 1 | H114: 0 | I114: 0 | J114: 0 | K114: 0 | M114: Serviço | N114: Serviço | O114: - | P114: SINAPI | Q114: 95470 | R114: VASO SANITARIO SIFONADO CONVENCIONAL COM LOUÇA BRANCA, INCLUSO CONJUNTO DE LIGAÇÃO PARA BACIA SANITÁRIA AJUSTÁVEL - FORNECIMENTO E INSTALAÇÃO. AF_10/2016 | S114: UN | T114: 15 | W114: 0
A115: S | B115: 3 | C115: S | D115: 0 | E115: 1 | F115: 5 | G115: 1 | H115: 0 | I115: 0 | J115: 0 | K115: 0 | M115: Serviço | N115: Serviço | O115: - | P115: SINAPI | Q115: 99635 | R115: VÁLVULA DE DESCARGA METÁLICA, BASE 1 1/2 ", ACABAMENTO METALICO CROMADO - FORNECIMENTO E INSTALAÇÃO. AF_01/2019 | S115: UN | T115: 15 | W115: 0 | X115: Referência: AGETOP - 80515
A116: S | B116: 3 | C116: S | D116: 0 | E116: 1 | F116: 5 | G116: 1 | H116: 0 | I116: 0 | J116: 0 | K116: 0 | M116: Serviço | N116: Serviço | O116: - | P116: AGETOP | Q116: 80510 | R116: ANEL DE VEDAÇÃO PARA VASO SANITÁRIO | S116: Un | T116: 15 | W116: 0
A117: S | B117: 3 | C117: S | D117: 0 | E117: 1 | F117: 5 | G117: 1 | H117: 0 | I117: 0 | J117: 0 | K117: 0 | M117: Serviço | N117: Serviço | O117: - | P117: AGETOP | Q117: 80520 | R117: CONJUNTO DE FIXACAO P/VASO SANITARIO (PAR) | S117: CJ | T117: 15 | W117: 0
A118: S | B118: 3 | C118: S | D118: 0 | E118: 1 | F118: 5 | G118: 1 | H118: 0 | I118: 0 | J118: 0 | K118: 0 | M118: Serviço | N118: Serviço | O118: - | P118: AGETOP | Q118: 80526 | R118: ASSENTO EM POLIPROPILENO COM SISTEMA DE FECHAMENTO SUAVE PARA VASO SANITÁRIO | S118: Un | T118: 15 | W118: 0
A119: S | B119: 3 | C119: S | D119: 0 | E119: 1 | F119: 5 | G119: 1 | H119: 0 | I119: 0 | J119: =IF(OR($C119="S",$C119=0),0,MATCH(0,OFFSET($D119,1,$C119,ROW($C$497)-ROW($C119)),0)) -> 0 | K119: =IF(OR($C119="S",$C119=0),0,MATCH(OFFSET($D119,0,$C119)+1,OFFSET($D119,1,$C119,ROW($C$497)-ROW($C119)),0)) -> 0 | M119: Serviço | N119: Serviço | O119: - | P119: SINAPI | Q119: 97902 | R119: CAIXA ENTERRADA HIDRÁULICA RETANGULAR EM ALVENARIA COM TIJOLOS CERÂMICOS MACIÇOS, DIMENSÕES INTERNAS: 0,6X0,6X0,6 M PARA REDE DE ESGOTO. AF_05/2018 | S119: UN | T119: 2 | W119: 0
A120: S | B120: 3 | C120: S | D120: 0 | E120: 1 | F120: 5 | G120: 1 | H120: 0 | I120: 0 | J120: 0 | K120: 0 | M120: Serviço | N120: Serviço | O120: - | P120: SINAPI | Q120: 6171 | R120: TAMPA DE CONCRETO ARMADO 60X60X5CM PARA CAIXA | S120: UN | T120: 2 | W120: 0
A121: S | B121: 3 | C121: S | D121: 0 | E121: 1 | F121: 5 | G121: 1 | H121: 0 | I121: 0 | J121: 0 | K121: 0 | M121: Serviço | N121: Serviço | O121: - | P121: AGETOP | Q121: 80845 | R121: CAIXA DE ALVENARIA 20x20x25 CM (REVESTIMENTO IMPERMEABILIZADO), FUNDO DE BRITA SEM TAMPA - PARA REGISTRO/TORNEIRA JARDIM | S121: Un | T121: 1 | W121: 0
A122: S | B122: 3 | C122: S | D122: 0 | E122: 1 | F122: 5 | G122: 1 | H122: 0 | I122: 0 | J122: 0 | K122: 0 | M122: Serviço | N122: Serviço | O122: - | P122: AGETOP | Q122: 80840 | R122: TAMPA T-5 ARTICULADA 20X20 | S122: Un | T122: 1 | W122: 0
A123: 3 | B123: 3 | C123: 3 | D123: 3 | E123: 1 | F123: 5 | G123: 2 | H123: 0 | I123: 0 | J123: 10 | K123: 3 | M123: Nível 3 | N123: Nível 3 | O123: - | R123: ESGOTO | S123: - | W123: 0
A124: S | B124: 3 | C124: S | D124: 0 | E124: 1 | F124: 5 | G124: 2 | H124: 0 | I124: 0 | J124: 0 | K124: 0 | M124: Serviço | N124: Serviço | O124: - | P124: SINAPI | Q124: 89800 | R124: TUBO PVC, SERIE NORMAL, ESGOTO PREDIAL, DN 100 MM, FORNECIDO E INSTALADO EM PRUMADA DE ESGOTO SANITÁRIO OU VENTILAÇÃO. AF_12/2014 | S124: M | T124: 48 | W124: 0
A125: S | B125: 3 | C125: S | D125: 0 | E125: 1 | F125: 5 | G125: 2 | H125: 0 | I125: 0 | J125: 0 | K125: 0 | M125: Serviço | N125: Serviço | O125: - | P125: SINAPI | Q125: 89778 | R125: LUVA SIMPLES, PVC, SERIE NORMAL, ESGOTO PREDIAL, DN 100 MM, JUNTA ELÁSTICA, FORNECIDO E INSTALADO EM RAMAL DE DESCARGA OU RAMAL DE ESGOTO SANITÁRIO. AF_12/2014 | S125: UN | T125: 6 | W125: 0 | X125: Referência: AGETOP - 82004
A126: 3 | B126: 3 | C126: 3 | D126: 7 | E126: 1 | F126: 5 | G126: 3 | H126: 0 | I126: 0 | J126: 7 | K126: 78 | M126: Nível 3 | N126: Nível 3 | O126: - | R126: ÁGUA | S126: - | W126: 0
A127: S | B127: 3 | C127: S | D127: 0 | E127: 1 | F127: 5 | G127: 3 | H127: 0 | I127: 0 | J127: 0 | K127: 0 | M127: Serviço | N127: Serviço | O127: - | P127: SINAPI | Q127: 89451 | R127: TUBO, PVC, SOLDÁVEL, DN 75MM, INSTALADO EM PRUMADA DE ÁGUA - FORNECIMENTO E INSTALAÇÃO. AF_12/2014 | S127: M | T127: 18 | W127: 0
A128: S | B128: 3 | C128: S | D128: 0 | E128: 1 | F128: 5 | G128: 3 | H128: 0 | I128: 0 | J128: 0 | K128: 0 | M128: Serviço | N128: Serviço | O128: - | P128: SINAPI | Q128: 89611 | R128: LUVA, PVC, SOLDÁVEL, DN 75MM, INSTALADO EM PRUMADA DE ÁGUA - FORNECIMENTO E INSTALAÇÃO. AF_12/2014 | S128: UN | T128: 2 | W128: 0
A129: S | B129: 3 | C129: S | D129: 0 | E129: 1 | F129: 5 | G129: 3 | H129: 0 | I129: 0 | J129: 0 | K129: 0 | M129: Serviço | N129: Serviço | O129: - | P129: SINAPI | Q129: 89513 | R129: JOELHO 90 GRAUS, PVC, SOLDÁVEL, DN 75MM, INSTALADO EM PRUMADA DE ÁGUA - FORNECIMENTO E INSTALAÇÃO. AF_12/2014 | S129: UN | T129: 4 | W129: 0 | X129: Referência: AGETOP - 81326
A130: S | B130: 3 | C130: S | D130: 0 | E130: 1 | F130: 5 | G130: 3 | H130: 0 | I130: 0 | J130: 0 | K130: 0 | M130: Serviço | N130: Serviço | O130: - | P130: SINAPI | Q130: 94713 | R130: ADAPTADOR COM FLANGES LIVRES, PVC, SOLDÁVEL, DN 75 MM X 2 1/2 , INSTALADO EM RESERVAÇÃO DE ÁGUA DE EDIFICAÇÃO QUE POSSUA RESERVATÓRIO DE FIBRA/FIBROCIMENTO FORNECIMENTO E INSTALAÇÃO. AF_06/2016 | S130: UN | T130: 1 | W130: 0
A131: S | B131: 3 | C131: S | D131: 0 | E131: 1 | F131: 5 | G131: 3 | H131: 0 | I131: 0 | J131: 0 | K131: 0 | M131: Serviço | N131: Serviço | O131: - | P131: SINAPI | Q131: 89613 | R131: ADAPTADOR CURTO COM BOLSA E ROSCA PARA REGISTRO, PVC, SOLDÁVEL, DN 75MM X 2.1/2, INSTALADO EM PRUMADA DE ÁGUA - FORNECIMENTO E INSTALAÇÃO. AF_12/2014 | S131: UN | T131: 2 | W131: 0 | X131: Referência: AGETOP - 81071
A132: S | B132: 3 | C132: S | D132: 0 | E132: 1 | F132: 5 | G132: 3 | H132: 0 | I132: 0 | J132: 0 | K132: 0 | M132: Serviço | N132: Serviço | O132: - | P132: SINAPI | Q132: 94499 | R132: REGISTRO DE GAVETA BRUTO, LATÃO, ROSCÁVEL, 2 1/2, INSTALADO EM RESERVAÇÃO DE ÁGUA DE EDIFICAÇÃO QUE POSSUA RESERVATÓRIO DE FIBRA/FIBROCIMENTO  FORNECIMENTO E INSTALAÇÃO. AF_06/2016 | S132: UN | T132: 1 | W132: 0 | X132: Referência: AGETOP - 80910
A133: =CHOOSE(1+LOG(1+2*(ORÇAMENTO.Nivel="Nível 1")+4*(ORÇAMENTO.Nivel="Nível 2")+8*(ORÇAMENTO.Nivel="Nível 3")+16*(ORÇAMENTO.Nivel="Nível 4")+32*(ORÇAMENTO.Nivel="Serviço"),2),0,1,2,3,4,"S") -> 2 | B133: =IF(OR(C133="s",C133=0),OFFSET(B133,-1,0),C133) -> 2 | C133: =IF(OFFSET(C133,-1,0)="L",1,IF(OFFSET(C133,-1,0)=1,2,IF(OR(A133="s",A133=0),"S",IF(AND(OFFSET(C133,-1,0)=2,A133=4),3,IF(AND(OR(OFFSET(C133,-1,0)="s",OFFSET(C133,-1,0)=0),A133<>"s",A133>OFFSET(B133,-1,0)),OFFSET(B133,-1,0),A133))))) -> 2 | D133: =IF(OR(C133="S",C133=0),0,IF(ISERROR(K133),J133,SMALL(J133:K133,1))) -> 27 | E133: =IF($C133=1,OFFSET(E133,-1,0)+1,OFFSET(E133,-1,0)) -> 1 | F133: =IF($C133=1,0,IF($C133=2,OFFSET(F133,-1,0)+1,OFFSET(F133,-1,0))) -> 6 | G133: =IF(AND($C133<=2,$C133<>0),0,IF($C133=3,OFFSET(G133,-1,0)+1,OFFSET(G133,-1,0))) -> 0 | H133: =IF(AND($C133<=3,$C133<>0),0,IF($C133=4,OFFSET(H133,-1,0)+1,OFFSET(H133,-1,0))) -> 0 | I133: =IF(AND($C133<=4,$C133<>0),0,IF(AND($C133="S",$W133>0),OFFSET(I133,-1,0)+1,OFFSET(I133,-1,0))) -> 0 | J133: 86 | K133: 27 | M133: Nível 2 | N133: Nível 2 | O133: - | R133: INSTALAÇÕES ESPECIAIS | S133: - | W133: 0
A134: 3 | B134: 3 | C134: 3 | D134: 26 | E134: 1 | F134: 6 | G134: 1 | H134: 0 | I134: 0 | J134: 26 | K134: 56 | M134: Nível 3 | N134: Nível 3 | O134: - | P134: SINAPI | R134: CENTRAL DE GÁS | S134: - | W134: 0
A135: S | B135: 3 | C135: S | D135: 0 | E135: 1 | F135: 6 | G135: 1 | H135: 0 | I135: 0 | J135: 0 | K135: 0 | M135: Serviço | N135: Serviço | O135: - | P135: AGETOP | Q135: 91007 | R135: CENTRAL DE GÁS PADRÃO AGETOP SEM INSTALAÇÕES (1+1 CILINDRO 45 KG) | S135: Un | T135: 1 | W135: 0
A136: S | B136: 3 | C136: S | D136: 0 | E136: 1 | F136: 6 | G136: 1 | H136: 0 | I136: 0 | J136: 0 | K136: 0 | M136: Serviço | N136: Serviço | O136: - | P136: AGETOP | Q136: 91023 | R136: UNIÃO S/BRONZE PRETA 3/4" NPT 300 LBS | S136: Un | T136: 3 | W136: 0
A137: S | B137: 3 | C137: S | D137: 0 | E137: 1 | F137: 6 | G137: 1 | H137: 0 | I137: 0 | J137: 0 | K137: 0 | M137: Serviço | N137: Serviço | O137: - | P137: COMPOSIÇÃO | Q137: COMP 382_SEE | R137: TE DE REDUCAO DE FERRO GALVANIZADO, COM ROSCA BSP, DE 3/4" X 1/2" | S137: UN | T137: 1 | W137: 0
A138: S | B138: 3 | C138: S | D138: 0 | E138: 1 | F138: 6 | G138: 1 | H138: 0 | I138: 0 | J138: 0 | K138: 0 | M138: Serviço | N138: Serviço | O138: - | P138: COMPOSIÇÃO | Q138: COMP 383_SEE | R138: BUCHA DE REDUCAO DE FERRO GALVANIZADO, COM ROSCA BSP, DE 1/2" X 1/4" | S138: UN | T138: 3 | W138: 0
A139: S | B139: 3 | C139: S | D139: 0 | E139: 1 | F139: 6 | G139: 1 | H139: 0 | I139: 0 | J139: 0 | K139: 0 | M139: Serviço | N139: Serviço | O139: - | P139: AGETOP | Q139: 91021 | R139: LUVA GALVANIZADO DE REDUÇÃO 3/4" X 1/2" (GÁS) | S139: Un | T139: 2 | W139: 0
A140: S | B140: 3 | C140: S | D140: 0 | E140: 1 | F140: 6 | G140: 1 | H140: 0 | I140: 0 | J140: 0 | K140: 0 | M140: Serviço | N140: Serviço | O140: - | P140: SINAPI | Q140: 92692 | R140: NIPLE, EM FERRO GALVANIZADO, CONEXÃO ROSQUEADA, DN 15 (1/2"), INSTALADO EM RAMAIS E SUB-RAMAIS DE GÁS - FORNECIMENTO E INSTALAÇÃO. AF_12/2015 | S140: UN | T140: 6 | W140: 0
A141: S | B141: 3 | C141: S | D141: 0 | E141: 1 | F141: 6 | G141: 1 | H141: 0 | I141: 0 | J141: 0 | K141: 0 | M141: Serviço | N141: Serviço | O141: - | P141: AGETOP | Q141: 91031 | R141: NIPLE DUPLO 300 PSI 3/4" | S141: Un | T141: 6 | W141: 0
A142: S | B142: 3 | C142: S | D142: 0 | E142: 1 | F142: 6 | G142: 1 | H142: 0 | I142: 0 | J142: 0 | K142: 0 | M142: Serviço | N142: Serviço | O142: - | P142: COMPOSIÇÃO | Q142: COMP 212_SEE | R142: NIPLE DE REDUÇÃO 1/2" X 1/4" BSP | S142: UN | T142: 4 | W142: 0
A143: S | B143: 3 | C143: S | D143: 0 | E143: 1 | F143: 6 | G143: 1 | H143: 0 | I143: 0 | J143: 0 | K143: 0 | M143: Serviço | N143: Serviço | O143: - | P143: COMPOSIÇÃO | Q143: COMP 213_SEE | R143: NIPLE DE REDUÇÃO 3/4" X 1/2" BSP | S143: UN | T143: 4 | W143: 0
A144: S | B144: 3 | C144: S | D144: 0 | E144: 1 | F144: 6 | G144: 1 | H144: 0 | I144: 0 | J144: 0 | K144: 0 | M144: Serviço | N144: Serviço | O144: - | P144: SINAPI | Q144: 92688 | R144: TUBO DE AÇO GALVANIZADO COM COSTURA, CLASSE MÉDIA, CONEXÃO ROSQUEADA, DN 20 (3/4"), INSTALADO EM RAMAIS E SUB-RAMAIS DE GÁS - FORNECIMENTO E INSTALAÇÃO. AF_12/2015 | S144: M | T144: 12 | W144: 0
A145: S | B145: 3 | C145: S | D145: 0 | E145: 1 | F145: 6 | G145: 1 | H145: 0 | I145: 0 | J145: 0 | K145: 0 | M145: Serviço | N145: Serviço | O145: - | P145: SINAPI | Q145: 92701 | R145: JOELHO 90 GRAUS, EM FERRO GALVANIZADO, CONEXÃO ROSQUEADA, DN 20 (3/4"), INSTALADO EM RAMAIS E SUB-RAMAIS DE GÁS - FORNECIMENTO E INSTALAÇÃO. AF_12/2015 | S145: UN | T145: 7 | W145: 0
A146: S | B146: 3 | C146: S | D146: 0 | E146: 1 | F146: 6 | G146: 1 | H146: 0 | I146: 0 | J146: 0 | K146: 0 | M146: Serviço | N146: Serviço | O146: - | P146: COMPOSIÇÃO | Q146: COMP 237_SEE | R146: FITA ANTICORROSIVA | S146: M | T146: 5 | W146: 0
A147: S | B147: 3 | C147: S | D147: 0 | E147: 1 | F147: 6 | G147: 1 | H147: 0 | I147: 0 | J147: 0 | K147: 0 | M147: Serviço | N147: Serviço | O147: - | P147: AGETOP | Q147: 91025 | R147: VÁLVULA ESFERICA LATÃO 3/4" | S147: Un | T147: 3 | W147: 0
A148: S | B148: 3 | C148: S | D148: 0 | E148: 1 | F148: 6 | G148: 1 | H148: 0 | I148: 0 | J148: 0 | K148: 0 | M148: Serviço | N148: Serviço | O148: - | P148: COMPOSIÇÃO | Q148: COMP 542_SEE | R148: VÁLVULA UGV 3/4" (S) LATÃO | S148: UN | T148: 2 | W148: 0
A149: S | B149: 3 | C149: S | D149: 0 | E149: 1 | F149: 6 | G149: 1 | H149: 0 | I149: 0 | J149: 0 | K149: 0 | M149: Serviço | N149: Serviço | O149: - | P149: COMPOSIÇÃO | Q149: COMP 543_SEE | R149: VÁLVULA UGV 1/2" (S) LATÃO | S149: UN | T149: 2 | W149: 0
A150: S | B150: 3 | C150: S | D150: 0 | E150: 1 | F150: 6 | G150: 1 | H150: 0 | I150: 0 | J150: 0 | K150: 0 | M150: Serviço | N150: Serviço | O150: - | P150: AGETOP | Q150: 91029 | R150: VALVULA DE RETENÇÃO LATÃO 1/2" X 7/16" NPT | S150: Un | T150: 2 | W150: 0
A151: S | B151: 3 | C151: S | D151: 0 | E151: 1 | F151: 6 | G151: 1 | H151: 0 | I151: 0 | J151: =IF(OR($C151="S",$C151=0),0,MATCH(0,OFFSET($D151,1,$C151,ROW($C$497)-ROW($C151)),0)) -> 0 | K151: =IF(OR($C151="S",$C151=0),0,MATCH(OFFSET($D151,0,$C151)+1,OFFSET($D151,1,$C151,ROW($C$497)-ROW($C151)),0)) -> 0 | M151: Serviço | N151: Serviço | O151: - | P151: COMPOSIÇÃO | Q151: COMP 211_SEE | R151: REGULADOR DE 2º ESTÁGIO 5KG/H | S151: UN | T151: 2 | W151: 0
A152: S | B152: 3 | C152: S | D152: 0 | E152: 1 | F152: 6 | G152: 1 | H152: 0 | I152: 0 | J152: 0 | K152: 0 | M152: Serviço | N152: Serviço | O152: - | P152: COMPOSIÇÃO | Q152: COMP 210_SEE | R152: REGULADOR DE 1º ESTÁGIO 60KG/H MODELO AP-40 COM MANÔMETRO | S152: UN | T152: 1 | W152: 0
A153: S | B153: 3 | C153: S | D153: 0 | E153: 1 | F153: 6 | G153: 1 | H153: 0 | I153: 0 | J153: 0 | K153: 0 | M153: Serviço | N153: Serviço | O153: - | P153: AGETOP | Q153: 85003 | R153: EXTINTOR PO QUIMICO SECO (6 KG) - CAPACIDADE EXTINTORA 20 BC | S153: Un | T153: 1 | W153: 0
A154: S | B154: 3 | C154: S | D154: 0 | E154: 1 | F154: 6 | G154: 1 | H154: 0 | I154: 0 | J154: 0 | K154: 0 | M154: Serviço | N154: Serviço | O154: - | P154: COMPOSIÇÃO | Q154: COMP 235_SEE | R154: PLACA DE SINALIZAÇÃO EM PVC COD 01 - (300X300) PROIBIDO FUMAR | S154: UN | T154: 2 | W154: 0
A155: S | B155: 3 | C155: S | D155: 0 | E155: 1 | F155: 6 | G155: 1 | H155: 0 | I155: 0 | J155: 0 | K155: 0 | M155: Serviço | N155: Serviço | O155: - | P155: COMPOSIÇÃO | Q155: COMP 236_SEE | R155: PLACA DE SINALIZAÇÃO EM PVC COD 06 - (300X300) PERIGO INFLAMÁVEL | S155: UN | T155: 2 | W155: 0
A156: S | B156: 3 | C156: S | D156: 0 | E156: 1 | F156: 6 | G156: 1 | H156: 0 | I156: 0 | J156: 0 | K156: 0 | M156: Serviço | N156: Serviço | O156: - | P156: AGETOP | Q156: 91043 | R156: BRAÇADEIRA METALICA TIPO "D" DIAM. 3/4" | S156: Un | T156: 7 | W156: 0
A157: S | B157: 3 | C157: S | D157: 0 | E157: 1 | F157: 6 | G157: 1 | H157: 0 | I157: 0 | J157: 0 | K157: 0 | M157: Serviço | N157: Serviço | O157: - | P157: AGETOP | Q157: 71863 | R157: PARAFUSO P/BUCHA S-10 | S157: Un | T157: 14 | W157: 0
A158: S | B158: 3 | C158: S | D158: 0 | E158: 1 | F158: 6 | G158: 1 | H158: 0 | I158: 0 | J158: 0 | K158: 0 | M158: Serviço | N158: Serviço | O158: - | P158: AGETOP | Q158: 70393 | R158: BUCHA DE NYLON S-10 | S158: Un | T158: 14 | W158: 0
A159: S | B159: 3 | C159: S | D159: 0 | E159: 1 | F159: 6 | G159: 1 | H159: 0 | I159: 0 | J159: 0 | K159: 0 | M159: Serviço | N159: Serviço | O159: - | P159: AGETOP | Q159: 91045 | R159: SUPORTE PARA COLETOR | S159: Un | T159: 2 | W159: 0
A160: =CHOOSE(1+LOG(1+2*(ORÇAMENTO.Nivel="Nível 1")+4*(ORÇAMENTO.Nivel="Nível 2")+8*(ORÇAMENTO.Nivel="Nível 3")+16*(ORÇAMENTO.Nivel="Nível 4")+32*(ORÇAMENTO.Nivel="Serviço"),2),0,1,2,3,4,"S") -> 2 | B160: 2 | C160: 2 | D160: 2 | E160: 1 | F160: 7 | G160: 0 | H160: 0 | I160: =IF(AND($C160<=4,$C160<>0),0,IF(AND($C160="S",$W160>0),OFFSET(I160,-1,0)+1,OFFSET(I160,-1,0))) -> 0 | J160: 59 | K160: 2 | M160: Nível 2 | N160: Nível 2 | O160: - | R160: ALVENARIAS E DIVISÓRIAS | S160: - | W160: 0
A161: S | B161: 2 | C161: S | D161: 0 | E161: =IF($C161=1,OFFSET(E161,-1,0)+1,OFFSET(E161,-1,0)) -> 1 | F161: =IF($C161=1,0,IF($C161=2,OFFSET(F161,-1,0)+1,OFFSET(F161,-1,0))) -> 7 | G161: =IF(AND($C161<=2,$C161<>0),0,IF($C161=3,OFFSET(G161,-1,0)+1,OFFSET(G161,-1,0))) -> 0 | H161: =IF(AND($C161<=3,$C161<>0),0,IF($C161=4,OFFSET(H161,-1,0)+1,OFFSET(H161,-1,0))) -> 0 | I161: 0 | J161: 0 | K161: 0 | M161: Serviço | N161: Serviço | O161: - | P161: SINAPI | Q161: 87520 | R161: ALVENARIA DE VEDAÇÃO DE BLOCOS CERÂMICOS FURADOS NA HORIZONTAL DE 9X19X19CM (ESPESSURA 9CM) DE PAREDES COM ÁREA LÍQUIDA MAIOR OU IGUAL A 6M² COM VÃOS E ARGAMASSA DE ASSENTAMENTO COM PREPARO MANUAL. AF_06/2014 | S161: M2 | T161: 1.78 | W161: 0 | X161: Referência: AGETOP - 100201
A162: 2 | B162: =IF(OR(C162="s",C162=0),OFFSET(B162,-1,0),C162) -> 2 | C162: =IF(OFFSET(C162,-1,0)="L",1,IF(OFFSET(C162,-1,0)=1,2,IF(OR(A162="s",A162=0),"S",IF(AND(OFFSET(C162,-1,0)=2,A162=4),3,IF(AND(OR(OFFSET(C162,-1,0)="s",OFFSET(C162,-1,0)=0),A162<>"s",A162>OFFSET(B162,-1,0)),OFFSET(B162,-1,0),A162))))) -> 2 | D162: =IF(OR(C162="S",C162=0),0,IF(ISERROR(K162),J162,SMALL(J162:K162,1))) -> 3 | E162: 1 | F162: 8 | G162: 0 | H162: 0 | I162: 0 | J162: 57 | K162: 3 | M162: Nível 2 | N162: Nível 2 | O162: - | R162: ESTRUTURA DE MADEIRA | S162: - | W162: 0
A163: S | B163: 2 | C163: S | D163: 0 | E163: 1 | F163: 8 | G163: 0 | H163: 0 | I163: 0 | J163: 0 | K163: 0 | M163: Serviço | N163: Serviço | O163: - | P163: AGETOP | Q163: 140101 | R163: ESTRUTURA-TELHA CERÂMICA V=3 A 7 M. C/FERRAGENS | S163: m2 | T163: 830.82 | W163: 0
A164: S | B164: 2 | C164: S | D164: 0 | E164: 1 | F164: 8 | G164: 0 | H164: 0 | I164: 0 | J164: =IF(OR($C164="S",$C164=0),0,MATCH(0,OFFSET($D164,1,$C164,ROW($C$497)-ROW($C164)),0)) -> 0 | K164: =IF(OR($C164="S",$C164=0),0,MATCH(OFFSET($D164,0,$C164)+1,OFFSET($D164,1,$C164,ROW($C$497)-ROW($C164)),0)) -> 0 | M164: Serviço | N164: Serviço | O164: - | P164: SINAPI | Q164: 92541 | R164: TRAMA DE MADEIRA COMPOSTA POR RIPAS, CAIBROS E TERÇAS PARA TELHADOS DE ATÉ 2 ÁGUAS PARA TELHA CERÂMICA CAPA-CANAL, INCLUSO TRANSPORTE VERTICAL. AF_07/2019 | S164: M2 | T164: 249.24 | W164: 0 | X164: Referência: AGETOP - 140202
A165: 2 | B165: 2 | C165: 2 | D165: 6 | E165: 1 | F165: 9 | G165: 0 | H165: 0 | I165: 0 | J165: 54 | K165: 6 | M165: Nível 2 | N165: Nível 2 | O165: - | R165: COBERTURAS | S165: - | W165: 0
A166: S | B166: 2 | C166: S | D166: 0 | E166: 1 | F166: 9 | G166: 0 | H166: 0 | I166: 0 | J166: =IF(OR($C166="S",$C166=0),0,MATCH(0,OFFSET($D166,1,$C166,ROW($C$497)-ROW($C166)),0)) -> 0 | K166: =IF(OR($C166="S",$C166=0),0,MATCH(OFFSET($D166,0,$C166)+1,OFFSET($D166,1,$C166,ROW($C$497)-ROW($C166)),0)) -> 0 | M166: Serviço | N166: Serviço | O166: - | P166: AGETOP | Q166: 160421 | R166: MAO DE OBRA PARA COBERTURA C/TELHA COLONIAL PLAN | S166: m2 | T166: 883.43 | W166: 0
A167: S | B167: 2 | C167: S | D167: 0 | E167: 1 | F167: 9 | G167: 0 | H167: 0 | I167: 0 | J167: 0 | K167: 0 | M167: Serviço | N167: Serviço | O167: - | P167: SINAPI | Q167: 94445 | R167: TELHAMENTO COM TELHA CERÂMICA CAPA-CANAL, TIPO PLAN, COM ATÉ 2 ÁGUAS, INCLUSO TRANSPORTE VERTICAL. AF_07/2019 | S167: M2 | T167: 883.44 | W167: 0 | X167: Referência: AGETOP - 160401
A168: S | B168: 2 | C168: S | D168: 0 | E168: 1 | F168: 9 | G168: 0 | H168: 0 | I168: 0 | J168: 0 | K168: 0 | M168: Serviço | N168: Serviço | O168: - | P168: SINAPI | Q168: 94221 | R168: CUMEEIRA PARA TELHA CERÂMICA EMBOÇADA COM ARGAMASSA TRAÇO 1:2:9 (CIMENTO, CAL E AREIA) PARA TELHADOS COM ATÉ 2 ÁGUAS, INCLUSO TRANSPORTE VERTICAL. AF_07/2019 | S168: M | T168: 154.41 | W168: 0
A169: S | B169: 2 | C169: S | D169: 0 | E169: 1 | F169: 9 | G169: 0 | H169: 0 | I169: 0 | J169: =IF(OR($C169="S",$C169=0),0,MATCH(0,OFFSET($D169,1,$C169,ROW($C$497)-ROW($C169)),0)) -> 0 | K169: =IF(OR($C169="S",$C169=0),0,MATCH(OFFSET($D169,0,$C169)+1,OFFSET($D169,1,$C169,ROW($C$497)-ROW($C169)),0)) -> 0 | M169: Serviço | N169: Serviço | O169: - | P169: SINAPI | Q169: 94224 | R169: EMBOÇAMENTO COM ARGAMASSA TRAÇO 1:2:9 (CIMENTO, CAL E AREIA). AF_07/2019 | S169: M | T169: 313.29 | W169: 0 | X169: Referência: AGETOP - 160403
A170: S | B170: 2 | C170: S | D170: 0 | E170: 1 | F170: 9 | G170: 0 | H170: 0 | I170: 0 | J170: 0 | K170: 0 | M170: Serviço | N170: Serviço | O170: - | P170: AGETOP | Q170: 160600 | R170: CALHA DE CHAPA GALVANIZADA | S170: m2 | T170: 6.31 | W170: 0
A171: 2 | B171: 2 | C171: 2 | D171: 2 | E171: 1 | F171: 10 | G171: 0 | H171: 0 | I171: 0 | J171: 48 | K171: 2 | M171: Nível 2 | N171: Nível 2 | O171: - | R171: ESQUADRIAS METÁLICAS | S171: - | W171: 0
A172: S | B172: 2 | C172: S | D172: 0 | E172: 1 | F172: 10 | G172: 0 | H172: 0 | I172: 0 | J172: 0 | K172: 0 | M172: Serviço | N172: Serviço | O172: - | P172: SINAPI | Q172: 73933/4 | R172: PORTA DE FERRO DE ABRIR TIPO BARRA CHATA, COM REQUADRO E GUARNICAO COMPLETA | S172: M2 | T172: 5.04 | W172: 0 | X172: Referência: AGETOP - 180501
A173: 2 | B173: 2 | C173: 2 | D173: 5 | E173: 1 | F173: 11 | G173: 0 | H173: 0 | I173: 0 | J173: 46 | K173: 5 | M173: Nível 2 | N173: Nível 2 | O173: - | R173: REVESTIMENTO DE PAREDE | S173: - | W173: 0
A174: =CHOOSE(1+LOG(1+2*(ORÇAMENTO.Nivel="Nível 1")+4*(ORÇAMENTO.Nivel="Nível 2")+8*(ORÇAMENTO.Nivel="Nível 3")+16*(ORÇAMENTO.Nivel="Nível 4")+32*(ORÇAMENTO.Nivel="Serviço"),2),0,1,2,3,4,"S") -> S | B174: 2 | C174: S | D174: 0 | E174: 1 | F174: 11 | G174: 0 | H174: 0 | I174: =IF(AND($C174<=4,$C174<>0),0,IF(AND($C174="S",$W174>0),OFFSET(I174,-1,0)+1,OFFSET(I174,-1,0))) -> 0 | J174: 0 | K174: 0 | M174: Serviço | N174: Serviço | O174: - | P174: SINAPI | Q174: 87904 | R174: CHAPISCO APLICADO EM ALVENARIA (COM PRESENÇA DE VÃOS) E ESTRUTURAS DE CONCRETO DE FACHADA, COM COLHER DE PEDREIRO. ARGAMASSA TRAÇO 1:3 COM PREPARO MANUAL. AF_06/2014 | S174: M2 | T174: 3.56 | W174: 0 | X174: Referência: AGETOP - 200101
A175: S | B175: 2 | C175: S | D175: 0 | E175: =IF($C175=1,OFFSET(E175,-1,0)+1,OFFSET(E175,-1,0)) -> 1 | F175: =IF($C175=1,0,IF($C175=2,OFFSET(F175,-1,0)+1,OFFSET(F175,-1,0))) -> 11 | G175: =IF(AND($C175<=2,$C175<>0),0,IF($C175=3,OFFSET(G175,-1,0)+1,OFFSET(G175,-1,0))) -> 0 | H175: =IF(AND($C175<=3,$C175<>0),0,IF($C175=4,OFFSET(H175,-1,0)+1,OFFSET(H175,-1,0))) -> 0 | I175: 0 | J175: 0 | K175: 0 | M175: Serviço | N175: Serviço | O175: - | P175: SINAPI | Q175: 87547 | R175: MASSA ÚNICA, PARA RECEBIMENTO DE PINTURA, EM ARGAMASSA TRAÇO 1:2:8, PREPARO MECÂNICO COM BETONEIRA 400L, APLICADA MANUALMENTE EM FACES INTERNAS DE PAREDES, ESPESSURA DE 10MM, COM EXECUÇÃO DE TALISCAS. AF_06/2014 | S175: M2 | T175: 3.56 | W175: 0 | X175: Referência: AGETOP - 200500
A176: S | B176: 2 | C176: S | D176: 0 | E176: 1 | F176: 11 | G176: 0 | H176: 0 | I176: 0 | J176: 0 | K176: 0 | M176: Serviço | N176: Serviço | O176: - | P176: SINAPI | Q176: 87273 | R176: REVESTIMENTO CERÂMICO PARA PAREDES INTERNAS COM PLACAS TIPO ESMALTADA EXTRA DE DIMENSÕES 33X45 CM APLICADAS EM AMBIENTES DE ÁREA MAIOR QUE 5 M² NA ALTURA INTEIRA DAS PAREDES. AF_06/2014 | S176: M2 | T176: 237.88 | W176: 0
A177: S | B177: 2 | C177: S | D177: 0 | E177: 1 | F177: 11 | G177: 0 | H177: 0 | I177: 0 | J177: =IF(OR($C177="S",$C177=0),0,MATCH(0,OFFSET($D177,1,$C177,ROW($C$497)-ROW($C177)),0)) -> 0 | K177: =IF(OR($C177="S",$C177=0),0,MATCH(OFFSET($D177,0,$C177)+1,OFFSET($D177,1,$C177,ROW($C$497)-ROW($C177)),0)) -> 0 | M177: Serviço | N177: Serviço | O177: - | P177: AGETOP | Q177: 200201 | R177: EMBOÇO (1CI:4 ARML) | S177: m2 | T177: 78.39 | W177: 0
A178: 2 | B178: 2 | C178: 2 | D178: 3 | E178: 1 | F178: 12 | G178: 0 | H178: 0 | I178: 0 | J178: 41 | K178: 3 | M178: Nível 2 | N178: Nível 2 | O178: - | R178: FORROS | S178: - | W178: 0
A179: S | B179: 2 | C179: S | D179: 0 | E179: 1 | F179: 12 | G179: 0 | H179: 0 | I179: 0 | J179: =IF(OR($C179="S",$C179=0),0,MATCH(0,OFFSET($D179,1,$C179,ROW($C$497)-ROW($C179)),0)) -> 0 | K179: =IF(OR($C179="S",$C179=0),0,MATCH(OFFSET($D179,0,$C179)+1,OFFSET($D179,1,$C179,ROW($C$497)-ROW($C179)),0)) -> 0 | M179: Serviço | N179: Serviço | O179: - | P179: AGETOP | Q179: 210461 | R179: FORRO DE PVC SEM ESTRUTURA DE METALON (COM REPINTURA DA ESTRUTURA COM TINTA ALQUÍDICA D.F.) | S179: m2 | T179: 213.16 | W179: 0
A180: S | B180: =IF(OR(C180="s",C180=0),OFFSET(B180,-1,0),C180) -> 2 | C180: =IF(OFFSET(C180,-1,0)="L",1,IF(OFFSET(C180,-1,0)=1,2,IF(OR(A180="s",A180=0),"S",IF(AND(OFFSET(C180,-1,0)=2,A180=4),3,IF(AND(OR(OFFSET(C180,-1,0)="s",OFFSET(C180,-1,0)=0),A180<>"s",A180>OFFSET(B180,-1,0)),OFFSET(B180,-1,0),A180))))) -> S | D180: =IF(OR(C180="S",C180=0),0,IF(ISERROR(K180),J180,SMALL(J180:K180,1))) -> 0 | E180: 1 | F180: 12 | G180: 0 | H180: 0 | I180: 0 | J180: 0 | K180: 0 | M180: Serviço | N180: Serviço | O180: - | P180: SINAPI | Q180: 96116 | R180: FORRO EM RÉGUAS DE PVC, FRISADO, PARA AMBIENTES COMERCIAIS, INCLUSIVE ESTRUTURA DE FIXAÇÃO. AF_05/2017_P | S180: M2 | T180: 373.82 | W180: 0 | X180: Referência: AGETOP - 210460
A181: 2 | B181: 2 | C181: 2 | D181: 5 | E181: 1 | F181: 13 | G181: 0 | H181: 0 | I181: 0 | J181: 38 | K181: 5 | M181: Nível 2 | N181: Nível 2 | O181: - | R181: REVESTIMENTO DE PISO | S181: - | W181: 0
A182: S | B182: 2 | C182: S | D182: 0 | E182: 1 | F182: 13 | G182: 0 | H182: 0 | I182: 0 | J182: 0 | K182: 0 | M182: Serviço | N182: Serviço | O182: - | P182: SINAPI | Q182: 87251 | R182: REVESTIMENTO CERÂMICO PARA PISO COM PLACAS TIPO ESMALTADA EXTRA DE DIMENSÕES 45X45 CM APLICADA EM AMBIENTES DE ÁREA MAIOR QUE 10 M2. AF_06/2014 | S182: M2 | T182: 87.77 | W182: 0
A183: S | B183: 2 | C183: S | D183: 0 | E183: 1 | F183: 13 | G183: 0 | H183: 0 | I183: 0 | J183: 0 | K183: 0 | M183: Serviço | N183: Serviço | O183: - | P183: AGETOP | Q183: 220102 | R183: PISO CONCRETO DESEMPENADO ESPESSURA = 5 CM 1:2,5:3,5 | S183: m2 | T183: 430.24 | W183: 0
A184: S | B184: 2 | C184: S | D184: 0 | E184: 1 | F184: 13 | G184: 0 | H184: 0 | I184: 0 | J184: 0 | K184: 0 | M184: Serviço | N184: Serviço | O184: - | P184: AGETOP | Q184: 220100 | R184: PASSEIO PROTECAO EM CONC.DESEMPEN.5 CM 1:2,5:3,5 ( INCLUSO ESPELHO DE 30CM/ESCAVAÇÃO/REATERRO/APILOAMENTO/ATERRO INTERNO) | S184: m2 | T184: 39.72 | W184: 0
A185: S | B185: 2 | C185: S | D185: 0 | E185: 1 | F185: 13 | G185: 0 | H185: 0 | I185: 0 | J185: 0 | K185: 0 | M185: Serviço | N185: Serviço | O185: - | P185: AGETOP | Q185: 221126 | R185: PISO DE LADRILHO HIDRÁULICO COLORIDO MODELO TÁTIL ( ALERTA OU DIRECIONAL) SEM LASTRO | S185: m2 | T185: 35.83 | W185: 0
A186: 2 | B186: 2 | C186: 2 | D186: 6 | E186: 1 | F186: 14 | G186: 0 | H186: 0 | I186: 0 | J186: 33 | K186: 6 | M186: Nível 2 | N186: Nível 2 | O186: - | R186: ADMINISTRAÇÃO | S186: - | W186: 0
A187: 3 | B187: 3 | C187: 3 | D187: 3 | E187: 1 | F187: 14 | G187: 1 | H187: 0 | I187: 0 | J187: 5 | K187: 3 | M187: Nível 3 | N187: Nível 3 | O187: - | R187: MENSALISTAS | S187: - | W187: 0
A188: S | B188: 3 | C188: S | D188: 0 | E188: 1 | F188: 14 | G188: 1 | H188: 0 | I188: 0 | J188: =IF(OR($C188="S",$C188=0),0,MATCH(0,OFFSET($D188,1,$C188,ROW($C$497)-ROW($C188)),0)) -> 0 | K188: =IF(OR($C188="S",$C188=0),0,MATCH(OFFSET($D188,0,$C188)+1,OFFSET($D188,1,$C188,ROW($C$497)-ROW($C188)),0)) -> 0 | M188: Serviço | N188: Serviço | O188: - | P188: SINAPI | Q188: 90778 | R188: ENGENHEIRO CIVIL DE OBRA PLENO COM ENCARGOS COMPLEMENTARES | S188: H | T188: 132 | W188: 0 | X188: Referência: AGETOP - 250101
A189: S | B189: 3 | C189: S | D189: 0 | E189: 1 | F189: 14 | G189: 1 | H189: 0 | I189: 0 | J189: 0 | K189: 0 | M189: Serviço | N189: Serviço | O189: - | P189: SINAPI | Q189: 90776 | R189: ENCARREGADO GERAL COM ENCARGOS COMPLEMENTARES | S189: H | T189: 660 | W189: 0 | X189: Referência: AGETOP - 250103
A190: 3 | B190: 3 | C190: 3 | D190: 2 | E190: 1 | F190: 14 | G190: 2 | H190: 0 | I190: 0 | J190: 2 | K190: 9 | M190: Nível 3 | N190: Nível 3 | O190: - | R190: LAUDO DE ESTANQUEIDADE | S190: - | W190: 0
A191: S | B191: 3 | C191: S | D191: 0 | E191: 1 | F191: 14 | G191: 2 | H191: 0 | I191: 0 | J191: 0 | K191: 0 | M191: Serviço | N191: Serviço | O191: - | P191: SINAPI | Q191: 90778 | R191: ENGENHEIRO CIVIL DE OBRA PLENO COM ENCARGOS COMPLEMENTARES | S191: H | T191: 16 | W191: 0 | X191: Referência: AGETOP - 250101
A192: 2 | B192: 2 | C192: 2 | D192: 19 | E192: 1 | F192: 15 | G192: 0 | H192: 0 | I192: 0 | J192: 27 | K192: 19 | M192: Nível 2 | N192: Nível 2 | O192: - | R192: PINTURA | S192: - | W192: 0
A193: 3 | B193: 3 | C193: 3 | D193: 4 | E193: 1 | F193: 15 | G193: 1 | H193: 0 | I193: 0 | J193: 18 | K193: 4 | M193: Nível 3 | N193: Nível 3 | O193: - | R193: ESMALTE SINTÉTICO | S193: - | W193: 0
A194: S | B194: 3 | C194: S | D194: 0 | E194: 1 | F194: 15 | G194: 1 | H194: 0 | I194: 0 | J194: 0 | K194: 0 | M194: Serviço | N194: Serviço | O194: - | P194: AGETOP | Q194: 260105 | R194: REMOCAO DE PINTURA ANTIGA A OLEO OU ESMALTE | S194: m2 | T194: 544.37 | W194: 0
A195: S | B195: 3 | C195: S | D195: 0 | E195: 1 | F195: 15 | G195: 1 | H195: 0 | I195: 0 | J195: 0 | K195: 0 | M195: Serviço | N195: Serviço | O195: - | P195: SINAPI | Q195: 88497 | R195: APLICAÇÃO E LIXAMENTO DE MASSA LÁTEX EM PAREDES, DUAS DEMÃOS. AF_06/2014 | S195: M2 | T195: 544.37 | W195: 0 | X195: Referência: AGETOP - 261300
A196: =CHOOSE(1+LOG(1+2*(ORÇAMENTO.Nivel="Nível 1")+4*(ORÇAMENTO.Nivel="Nível 2")+8*(ORÇAMENTO.Nivel="Nível 3")+16*(ORÇAMENTO.Nivel="Nível 4")+32*(ORÇAMENTO.Nivel="Serviço"),2),0,1,2,3,4,"S") -> S | B196: 3 | C196: S | D196: 0 | E196: 1 | F196: 15 | G196: 1 | H196: 0 | I196: =IF(AND($C196<=4,$C196<>0),0,IF(AND($C196="S",$W196>0),OFFSET(I196,-1,0)+1,OFFSET(I196,-1,0))) -> 0 | J196: 0 | K196: 0 | M196: Serviço | N196: Serviço | O196: - | P196: AGETOP | Q196: 261550 | R196: PINT.ESMALTE SINT.PAREDES - 2 DEM.C/SELADOR | S196: m2 | T196: 1274.3 | W196: 0
A197: 3 | B197: 3 | C197: 3 | D197: 2 | E197: 1 | F197: 15 | G197: 2 | H197: 0 | I197: 0 | J197: 14 | K197: 2 | M197: Nível 3 | N197: Nível 3 | O197: - | P197: AGETOP | R197: LÁTEX ACRÍLICA | S197: - | W197: 0
A198: S | B198: 3 | C198: S | D198: 0 | E198: =IF($C198=1,OFFSET(E198,-1,0)+1,OFFSET(E198,-1,0)) -> 1 | F198: =IF($C198=1,0,IF($C198=2,OFFSET(F198,-1,0)+1,OFFSET(F198,-1,0))) -> 15 | G198: =IF(AND($C198<=2,$C198<>0),0,IF($C198=3,OFFSET(G198,-1,0)+1,OFFSET(G198,-1,0))) -> 2 | H198: =IF(AND($C198<=3,$C198<>0),0,IF($C198=4,OFFSET(H198,-1,0)+1,OFFSET(H198,-1,0))) -> 0 | I198: 0 | J198: 0 | K198: 0 | M198: Serviço | N198: Serviço | O198: - | P198: SINAPI | Q198: 88489 | R198: APLICAÇÃO MANUAL DE PINTURA COM TINTA LÁTEX ACRÍLICA EM PAREDES, DUAS DEMÃOS. AF_06/2014 | S198: M2 | T198: 1053.1 | W198: 0 | X198: Referência: AGETOP - 261001
A199: 3 | B199: 3 | C199: 3 | D199: 5 | E199: 1 | F199: 15 | G199: 3 | H199: 0 | I199: 0 | J199: 12 | K199: 5 | M199: Nível 3 | N199: Nível 3 | O199: - | P199: AGETOP | R199: EXTERNA | S199: - | W199: 0
A200: S | B200: =IF(OR(C200="s",C200=0),OFFSET(B200,-1,0),C200) -> 3 | C200: =IF(OFFSET(C200,-1,0)="L",1,IF(OFFSET(C200,-1,0)=1,2,IF(OR(A200="s",A200=0),"S",IF(AND(OFFSET(C200,-1,0)=2,A200=4),3,IF(AND(OR(OFFSET(C200,-1,0)="s",OFFSET(C200,-1,0)=0),A200<>"s",A200>OFFSET(B200,-1,0)),OFFSET(B200,-1,0),A200))))) -> S | D200: =IF(OR(C200="S",C200=0),0,IF(ISERROR(K200),J200,SMALL(J200:K200,1))) -> 0 | E200: 1 | F200: 15 | G200: 3 | H200: 0 | I200: 0 | J200: 0 | K200: 0 | M200: Serviço | N200: Serviço | O200: - | P200: AGETOP | Q200: 260104 | R200: REMOCAO DE PINTURA ANTIGA A LATEX | S200: m2 | T200: 357.73 | W200: 0
A201: S | B201: 3 | C201: S | D201: 0 | E201: 1 | F201: 15 | G201: 3 | H201: 0 | I201: 0 | J201: 0 | K201: 0 | M201: Serviço | N201: Serviço | O201: - | P201: AGETOP | Q201: 261304 | R201: EMASSAMENTO ACRILICO 2 DEMAOS | S201: m2 | T201: 5.76 | W201: 0
A202: S | B202: 3 | C202: S | D202: 0 | E202: 1 | F202: 15 | G202: 3 | H202: 0 | I202: 0 | J202: 0 | K202: 0 | M202: Serviço | N202: Serviço | O202: - | P202: SINAPI | Q202: 88423 | R202: APLICAÇÃO MANUAL DE PINTURA COM TINTA TEXTURIZADA ACRÍLICA EM PAREDES EXTERNAS DE CASAS, UMA COR. AF_06/2014 | S202: M2 | T202: 715.46 | W202: 0 | X202: Referência: AGETOP - 260601
A203: S | B203: 3 | C203: S | D203: 0 | E203: 1 | F203: 15 | G203: 3 | H203: 0 | I203: 0 | J203: 0 | K203: 0 | M203: Serviço | N203: Serviço | O203: - | P203: SINAPI | Q203: 88489 | R203: APLICAÇÃO MANUAL DE PINTURA COM TINTA LÁTEX ACRÍLICA EM PAREDES, DUAS DEMÃOS. AF_06/2014 | S203: M2 | T203: 572.64 | W203: 0 | X203: Referência: AGETOP - 261001
A204: 3 | B204: 3 | C204: 3 | D204: 3 | E204: 1 | F204: 15 | G204: 4 | H204: 0 | I204: 0 | J204: 7 | K204: 3 | M204: Nível 3 | N204: Nível 3 | O204: - | P204: AGETOP | R204: ESQUADRIAS EXISTENTES | S204: - | W204: 0
A205: S | B205: 3 | C205: S | D205: 0 | E205: 1 | F205: 15 | G205: 4 | H205: 0 | I205: 0 | J205: 0 | K205: 0 | M205: Serviço | N205: Serviço | O205: - | P205: AGETOP | Q205: 260105 | R205: REMOCAO DE PINTURA ANTIGA A OLEO OU ESMALTE | S205: m2 | T205: 479.24 | W205: 0
A206: S | B206: 3 | C206: S | D206: 0 | E206: 1 | F206: 15 | G206: 4 | H206: 0 | I206: 0 | J206: 0 | K206: 0 | M206: Serviço | N206: Serviço | O206: - | P206: SINAPI | Q206: 73924/3 | R206: PINTURA ESMALTE FOSCO, DUAS DEMAOS, SOBRE SUPERFICIE METALICA | S206: M2 | T206: 479.24 | W206: 0 | X206: Referência: AGETOP - 261503
... 364 more rows

Sheet Resumo
B3: UNIDADE ESCOLAR | G3: CÓDIGO INEP
B4: =Orçamento!$O$4 -> CENTRO DE ENSINO EM PERÍODO INTEGRAL NOVO HORIZONTE | G4: =Orçamento!V4 -> 52033945
B6: OBRA | G6: CIDADE
B7: =Orçamento!$O$7 -> REFORMA E AMPLIAÇÃO | G7: =Orçamento!$V$7 -> GOIÂNIA
B9: ENDEREÇO | G9: CRE
B10: =Orçamento!$R$10 -> ALAMEDA DAS PALMEIRAS, QD. 51-A S/N, NOVO HORIZONTE, CEP:74363-810 | G10: =Orçamento!$O$10 -> GOIÂNIA
B12: REFERÊNCIA | D12: DATA | G12: ÁREA TOTAL CONSTRUÍDA (M²)
B13: =CONCATENATE("AGETOP E SINAPI - ",Orçamento!$W$10) -> AGETOP E SINAPI - DESONERADA | D13: =Orçamento!$S$7 -> 2020-04-16 | G13: =Orçamento!$S$13 -> 2682.79
A14: FILTRO
B15: RESUMO GERAL DO ORÇAMENTO
A16: ↓ | B16: ITEM | C16: DESCRIÇÃO DOS SERVIÇOS | E16: UNID | F16: QUANT | G16: PREÇO SEM BDI | H16: PREÇO COM BDI | I16: PARTICIP. (%)
A17: =IF(E17>0,"F","") -> F | B17: 1. | C17: =Orçamento!$P550 -> REFORMA | E17: UN | F17: 1 | G17: =IFERROR(Orçamento!S550,"-") -> 0 | H17: =IFERROR(Orçamento!V550,"") -> 0 | I17: =Orçamento!X550 -> 
A18: =IF(E18>0,"F","") -> F | B18: 2. | C18: =Orçamento!$P551 -> IMPLANTAÇÃO | E18: UN | F18: 1 | G18: =IFERROR(Orçamento!S551,"-") -> 0 | H18: =IFERROR(Orçamento!V551,"") -> 0 | I18: =Orçamento!X551 -> 
A19: F | B19: 3. | C19: =Orçamento!$P552 -> VESTIÁRIO PADRÃO SEDUC 2019 | E19: UN | F19: 1 | G19: =IFERROR(Orçamento!S552,"-") -> 0 | H19: =IFERROR(Orçamento!V552,"") -> 0 | I19: =Orçamento!X552 -> 
B20: 4. | C20: =Orçamento!$P553 ->  | G20: =IFERROR(Orçamento!S553,"-") -> 0 | H20: =IFERROR(Orçamento!V553,"") -> 0 | I20: =Orçamento!X553 -> 
B21: 5. | C21: =Orçamento!$P554 ->  | G21: =IFERROR(Orçamento!S554,"-") -> 0 | H21: =IFERROR(Orçamento!V554,"") -> 0 | I21: =Orçamento!X554 -> 
B22: 6. | C22: =Orçamento!$P555 ->  | G22: =IFERROR(Orçamento!S555,"-") -> 0 | H22: =IFERROR(Orçamento!V555,"") -> 0 | I22: =Orçamento!X555 -> 
B23: 7. | C23: =Orçamento!$P556 ->  | G23: =IFERROR(Orçamento!S556,"-") -> 0 | H23: =IFERROR(Orçamento!V556,"") -> 0 | I23: =Orçamento!X556 -> 
B24: 8. | C24: =Orçamento!$P557 ->  | G24: =IFERROR(Orçamento!S557,"-") -> 0 | H24: =IFERROR(Orçamento!V557,"") -> 0 | I24: =Orçamento!X557 -> 
B25: 9. | C25: =Orçamento!$P558 ->  | G25: =IFERROR(Orçamento!S558,"-") -> 0 | H25: =IFERROR(Orçamento!V558,"") -> 0 | I25: =Orçamento!X558 -> 
B26: 10. | C26: =Orçamento!$P559 ->  | G26: =IFERROR(Orçamento!S559,"-") -> 0 | H26: =IFERROR(Orçamento!V559,"") -> 0 | I26: =Orçamento!X559 -> 
B27: 11. | C27: =Orçamento!$P560 ->  | G27: =IFERROR(Orçamento!S560,"-") -> 0 | H27: =IFERROR(Orçamento!V560,"") -> 0 | I27: =Orçamento!X560 -> 
B28: 12. | C28: =Orçamento!$P561 ->  | G28: =IFERROR(Orçamento!S561,"-") -> 0 | H28: =IFERROR(Orçamento!V561,"") -> 0 | I28: =Orçamento!X561 -> 
B29: 13. | C29: =Orçamento!$P562 ->  | G29: =IFERROR(Orçamento!S562,"-") -> 0 | H29: =IFERROR(Orçamento!V562,"") -> 0 | I29: =Orçamento!X562 -> 
B30: 14. | C30: =Orçamento!$P563 ->  | G30: =IFERROR(Orçamento!S563,"-") -> 0 | H30: =IFERROR(Orçamento!V563,"") -> 0 | I30: =Orçamento!X563 -> 
B31: 15. | C31: =Orçamento!$P564 ->  | G31: =IFERROR(Orçamento!S564,"-") -> 0 | H31: =IFERROR(Orçamento!V564,"") -> 0 | I31: =Orçamento!X564 -> 
B32: 16. | C32: =Orçamento!$P565 ->  | G32: =IFERROR(Orçamento!S565,"-") -> 0 | H32: =IFERROR(Orçamento!V565,"") -> 0 | I32: =Orçamento!X565 -> 
B33: 17. | C33: =Orçamento!$P566 ->  | G33: =IFERROR(Orçamento!S566,"-") -> 0 | H33: =IFERROR(Orçamento!V566,"") -> 0 | I33: =Orçamento!X566 -> 
B34: 18. | C34: =Orçamento!$P567 ->  | G34: =IFERROR(Orçamento!S567,"-") -> 0 | H34: =IFERROR(Orçamento!V567,"") -> 0 | I34: =Orçamento!X567 -> 
B35: 19. | C35: =Orçamento!$P568 ->  | G35: =IFERROR(Orçamento!S568,"-") -> 0 | H35: =IFERROR(Orçamento!V568,"") -> 0 | I35: =Orçamento!X568 -> 
B36: 20. | C36: =Orçamento!$P569 ->  | G36: =IFERROR(Orçamento!S569,"-") -> 0 | H36: =IFERROR(Orçamento!V569,"") -> 0 | I36: =Orçamento!X569 -> 
A37: F | B37: TOTAL GERAL DO ORÇAMENTO (R$) | G37: =SUM(G17:G36) -> 0 | H37: 0 | I37: =SUM(I17:I36) -> 
A38: F
A39: F

Sheet Somatório
B3: UNIDADE ESCOLAR | E3: CÓDIGO INEP
B4: =Orçamento!$O$4 -> CENTRO DE ENSINO EM PERÍODO INTEGRAL NOVO HORIZONTE | E4: =Orçamento!V4 -> 52033945
B6: OBRA | E6: CIDADE
B7: =Orçamento!$O$7 -> REFORMA E AMPLIAÇÃO | E7: =Orçamento!$V$7 -> GOIÂNIA
B9: ENDEREÇO | E9: CRE
B10: =Orçamento!$R$10 -> ALAMEDA DAS PALMEIRAS, QD. 51-A S/N, NOVO HORIZONTE, CEP:74363-810 | E10: =Orçamento!$O$10 -> GOIÂNIA
B12: REFERÊNCIA | D12: DATA | E12: ÁREA TOTAL CONSTRUÍDA (M²)
B13: =CONCATENATE("AGETOP E SINAPI - ",Orçamento!$W$10) -> AGETOP E SINAPI - DESONERADA | D13: =Orçamento!$S$7 -> 2020-04-16 | E13: =Orçamento!$S$13 -> 2682.79
A14: FILTRO
B15: SOMATÓRIO DE SERVIÇOS
A16: ↓ | B16: ITEM | C16: DESCRIÇÃO DOS SERVIÇOS | D16: PREÇO SEM BDI (R$) | E16: PREÇO COM BDI (R$) | F16: PARTIC. ( % )
A17: =IF(D17>0,"F","") ->  | B17: a. | C17: =Orçamento!P516 -> SERVIÇOS PRELIMINARES | D17: =Orçamento!S516 -> 0 | E17: =Orçamento!V516 -> 0 | F17: =Orçamento!X516 -> 0
A18: =IF(D18>0,"F","") ->  | B18: b. | C18: =Orçamento!P517 -> TRANSPORTES | D18: =Orçamento!S517 -> 0 | E18: =Orçamento!V517 -> 0 | F18: =Orçamento!X517 -> 0
B19: c. | C19: =Orçamento!P518 -> SERVIÇO EM TERRA | D19: =Orçamento!S518 -> 0 | E19: =Orçamento!V518 -> 0 | F19: =Orçamento!X518 -> 0
B20: d. | C20: =Orçamento!P519 -> FUNDAÇÕES E SONDAGENS | D20: =Orçamento!S519 -> 0 | E20: =Orçamento!V519 -> 0 | F20: =Orçamento!X519 -> 0
B21: e. | C21: =Orçamento!P520 -> ESTRUTURA | D21: =Orçamento!S520 -> 0 | E21: =Orçamento!V520 -> 0 | F21: =Orçamento!X520 -> 0
B22: f. | C22: =Orçamento!P521 -> INSTALAÇÕES ELÉTRICAS | D22: =Orçamento!S521 -> 0 | E22: =Orçamento!V521 -> 0 | F22: =Orçamento!X521 -> 0
B23: g. | C23: =Orçamento!P522 -> INSTALAÇÕES HIDROSSANITÁRIAS | D23: =Orçamento!S522 -> 0 | E23: =Orçamento!V522 -> 0 | F23: =Orçamento!X522 -> 0
B24: h. | C24: =Orçamento!P523 -> INSTALAÇÕES ESPECIAIS | D24: =Orçamento!S523 -> 0 | E24: =Orçamento!V523 -> 0 | F24: =Orçamento!X523 -> 0
B25: i. | C25: =Orçamento!P524 -> ALVENARIAS E DIVISÓRIAS | D25: =Orçamento!S524 -> 0 | E25: =Orçamento!V524 -> 0 | F25: =Orçamento!X524 -> 0
B26: j. | C26: =Orçamento!P525 -> ALVENARIA AUTO-PORTANTE | D26: =Orçamento!S525 -> 0 | E26: =Orçamento!V525 -> 0 | F26: =Orçamento!X525 -> 0
B27: k. | C27: =Orçamento!P526 -> IMPERMEABILIZAÇÃO | D27: =Orçamento!S526 -> 0 | E27: =Orçamento!V526 -> 0 | F27: =Orçamento!X526 -> 0
B28: l. | C28: =Orçamento!P527 -> ISOLAMENTO TÉRMICO E ACÚSTICO | D28: =Orçamento!S527 -> 0 | E28: =Orçamento!V527 -> 0 | F28: =Orçamento!X527 -> 0
B29: m. | C29: =Orçamento!P528 -> ESTRUTURA DE MADEIRA | D29: =Orçamento!S528 -> 0 | E29: =Orçamento!V528 -> 0 | F29: =Orçamento!X528 -> 0
B30: n. | C30: =Orçamento!P529 -> ESTRUTURAS METÁLICAS | D30: =Orçamento!S529 -> 0 | E30: =Orçamento!V529 -> 0 | F30: =Orçamento!X529 -> 0
B31: o. | C31: =Orçamento!P530 -> COBERTURAS | D31: =Orçamento!S530 -> 0 | E31: =Orçamento!V530 -> 0 | F31: =Orçamento!X530 -> 0
B32: p. | C32: =Orçamento!P531 -> ESQUADRIAS DE MADEIRA | D32: =Orçamento!S531 -> 0 | E32: =Orçamento!V531 -> 0 | F32: =Orçamento!X531 -> 0
B33: q. | C33: =Orçamento!P532 -> ESQUADRIAS METÁLICAS | D33: =Orçamento!S532 -> 0 | E33: =Orçamento!V532 -> 0 | F33: =Orçamento!X532 -> 0
B34: r. | C34: =Orçamento!P533 -> VIDROS | D34: =Orçamento!S533 -> 0 | E34: =Orçamento!V533 -> 0 | F34: =Orçamento!X533 -> 0
B35: s. | C35: =Orçamento!P534 -> REVESTIMENTO DE PAREDE | D35: =Orçamento!S534 -> 0 | E35: =Orçamento!V534 -> 0 | F35: =Orçamento!X534 -> 0
B36: t. | C36: =Orçamento!P535 -> FORROS | D36: =Orçamento!S535 -> 0 | E36: =Orçamento!V535 -> 0 | F36: =Orçamento!X535 -> 0
B37: u. | C37: =Orçamento!P536 -> REVESTIMENTO DE PISO | D37: =Orçamento!S536 -> 0 | E37: =Orçamento!V536 -> 0 | F37: =Orçamento!X536 -> 0
B38: v. | C38: =Orçamento!P537 -> FERRAGENS | D38: =Orçamento!S537 -> 0 | E38: =Orçamento!V537 -> 0 | F38: =Orçamento!X537 -> 0
B39: w. | C39: =Orçamento!P538 -> MARCENARIA | D39: =Orçamento!S538 -> 0 | E39: =Orçamento!V538 -> 0 | F39: =Orçamento!X538 -> 0
B40: x. | C40: =Orçamento!P539 -> ADMINISTRAÇÃO | D40: =Orçamento!S539 -> 0 | E40: =Orçamento!V539 -> 0 | F40: =Orçamento!X539 -> 0
B41: y. | C41: =Orçamento!P540 -> PINTURA | D41: =Orçamento!S540 -> 0 | E41: =Orçamento!V540 -> 0 | F41: =Orçamento!X540 -> 0
B42: z. | C42: =Orçamento!P541 -> DIVERSOS | D42: =Orçamento!S541 -> 0 | E42: =Orçamento!V541 -> 0 | F42: =Orçamento!X541 -> 0
A43: F | B43: TOTAL GERAL DO ORÇAMENTO | D43: =SUM(D17:D42) -> 0 | E43: =SUM(E17:E42) -> 0 | F43: =SUM(F17:F42) -> 0
B45: (*) Para itens da AGETOP, os vidros não estão inclusos nas esquadrias e já foram considerados os custos de contramarco para as esquadrias de alumínio;

Sheet Cronog_90_Dias
B3: UNIDADE ESCOLAR | I3: PRAZO
B4: =Orçamento!$O$4 -> CENTRO DE ENSINO EM PERÍODO INTEGRAL NOVO HORIZONTE | I4: 90 DIAS CORRIDOS
B6: OBRA | I6: DATA
B7: =Orçamento!$O$7 -> REFORMA E AMPLIAÇÃO | I7: =Orçamento!$S$7 -> 2020-04-16
B9: LOCAL | I9: ÁREA TOTAL CONSTRUÍDA (M²)
A10: FILTRO | B10: =Orçamento!$V$7 -> GOIÂNIA | I10: =Orçamento!$S$13 -> 2682.79
B12: CRONOGRAMA - FÍSICO FINANCEIRO
A13: ↓ | B13: CUSTO TOTAL: | C13: =D93 -> 0 | D13: VALOR | E13: Dias: | F13: 30 | J13: 60 | N13: 90 | R13: TOTAL
B14: DESCRIÇÃO DOS SERVIÇOS | E14: % | F14: 1ª PARCELA | J14: 2ª PARCELA | N14: 3ª PARCELA
A15: =IF(D15>0,"F","") ->  | B15: SERVIÇOS PRELIMINARES | D15: =Orçamento!V516 -> 0 | E15: =Orçamento!X516 -> 0 | F15: =ROUND(F17*$D$15,2) -> 0 | J15: =ROUND(J17*$D$15,2) -> 0 | N15: =ROUND(N17*$D$15,2) -> 0 | R15: =SUM(F15:Q15) -> 0 | T15: =IF(R15=D15,"OK","ERRO") -> OK
A16: =IF(A15="F",A15,"") -> 
A17: =IF(A16="F",A16,"") ->  | F17: 1 | N17: =1-F17 -> 0 | R17: =IFERROR(E15/100,"") -> 0 | T17: =IF(E15%=R17,"OK","ERRADO") -> OK
A18: =IF(D18>0,"F","") ->  | B18: TRANSPORTES | D18: =Orçamento!V517 -> 0 | E18: =Orçamento!X517 -> 0 | F18: =ROUND(F20*$D$18,2) -> 0 | J18: =ROUND(J20*$D$18,2) -> 0 | N18: =ROUND(N20*$D$18,2)-0.01 -> -0.01 | R18: =SUM(F18:Q18) -> -0.01 | T18: =IF(R18=D18,"OK","ERRO") -> ERRO | V18: 1
A19: =IF(A18="F",A18,"") -> 
A20: =IF(A19="F",A19,"") ->  | F20: 0.35 | J20: 0.35 | N20: 0.3 | R20: =IFERROR(E18/100,"") -> 0 | T20: =IF(E18%=R20,"OK","ERRADO") -> OK
A21: =IF(D21>0,"F","") ->  | B21: SERVIÇO EM TERRA | D21: =Orçamento!V518 -> 0 | E21: =Orçamento!X518 -> 0 | F21: =ROUND(F23*$D$21,2) -> 0 | J21: =ROUND(J23*$D$21,2) -> 0 | N21: =ROUND(N23*$D$21,2) -> 0 | R21: =SUM(F21:Q21) -> 0 | T21: =IF(R21=D21,"OK","ERRO") -> OK
A22: =IF(A21="F",A21,"") -> 
A23: =IF(A22="F",A22,"") ->  | F23: 1 | N23: =1-F23 -> 0 | R23: =IFERROR(E21/100,"") -> 0 | T23: =IF(E21%=R23,"OK","ERRADO") -> OK
A24: =IF(D24>0,"F","") ->  | B24: FUNDAÇÕES E SONDAGENS | D24: =Orçamento!V519 -> 0 | E24: =Orçamento!X519 -> 0 | F24: =ROUND(F26*$D$24,2) -> 0 | J24: =ROUND(J26*$D$24,2) -> 0 | N24: =ROUND(N26*$D$24,2) -> 0 | R24: =SUM(F24:Q24) -> 0 | T24: =IF(R24=D24,"OK","ERRO") -> OK
A25: =IF(A24="F",A24,"") -> 
A26: =IF(A25="F",A25,"") ->  | F26: 0.8 | J26: 0.2 | R26: =IFERROR(E24/100,"") -> 0 | T26: =IF(E24%=R26,"OK","ERRADO") -> OK
A27: =IF(D27>0,"F","") ->  | B27: ESTRUTURA | D27: =Orçamento!V520 -> 0 | E27: =Orçamento!X520 -> 0 | F27: =ROUND(F29*$D$27,2) -> 0 | J27: =ROUND(J29*$D$27,2) -> 0 | N27: =ROUND(N29*$D$27,2) -> 0 | R27: =SUM(F27:Q27) -> 0 | T27: =IF(R27=D27,"OK","ERRO") -> OK
A28: =IF(A27="F",A27,"") -> 
A29: =IF(A28="F",A28,"") ->  | F29: 0.2 | J29: 0.8 | R29: =IFERROR(E27/100,"") -> 0 | T29: =IF(E27%=R29,"OK","ERRADO") -> OK
A30: =IF(D30>0,"F","") ->  | B30: INST.ELET/TELEFÔNICA/CABEAMENTO ESTRUTURADO | D30: =Orçamento!V521 -> 0 | E30: =Orçamento!X521 -> 0 | F30: =ROUND(F32*$D$30,2) -> 0 | J30: =ROUND(J32*$D$30,2) -> 0 | N30: =ROUND(N32*$D$30,2)-0.01 -> -0.01 | R30: =SUM(F30:Q30) -> -0.01 | T30: =IF(R30=D30,"OK","ERRO") -> ERRO | V30: 1
A31: =IF(A30="F",A30,"") -> 
A32: =IF(A31="F",A31,"") ->  | F32: 0.4 | J32: 0.35 | N32: 0.25 | R32: =IFERROR(E30/100,"") -> 0 | T32: =IF(E30%=R32,"OK","ERRADO") -> OK
A33: =IF(D33>0,"F","") ->  | B33: INSTALAÇÕES HIDROSSANITÁRIAS | D33: =Orçamento!V522 -> 0 | E33: =Orçamento!X522 -> 0 | F33: =ROUND(F35*$D$33,2) -> 0 | J33: =ROUND(J35*$D$33,2) -> 0 | N33: =ROUND(N35*$D$33,2) -> 0 | R33: =SUM(F33:Q33) -> 0 | T33: =IF(R33=D33,"OK","ERRO") -> OK
A34: =IF(A33="F",A33,"") -> 
A35: =IF(A34="F",A34,"") ->  | F35: 0.5 | J35: 0.25 | N35: 0.25 | R35: =IFERROR(E33/100,"") -> 0 | T35: =IF(E33%=R35,"OK","ERRADO") -> OK
A36: =IF(D36>0,"F","") ->  | B36: INSTALAÇÕES ESPECIAIS | D36: =Orçamento!V523 -> 0 | E36: =Orçamento!X523 -> 0 | F36: =ROUND(F38*$D$36,2) -> 0 | J36: =ROUND(J38*$D$36,2) -> 0 | N36: =ROUND(N38*$D$36,2) -> 0 | R36: =SUM(F36:Q36) -> 0 | T36: =IF(R36=D36,"OK","ERRO") -> OK
A37: =IF(A36="F",A36,"") -> 
A38: =IF(A37="F",A37,"") ->  | F38: 0.5 | J38: 0.2 | N38: =1-F38-J38 -> 0.3 | R38: =IFERROR(E36/100,"") -> 0 | T38: =IF(E36%=R38,"OK","ERRADO") -> OK
A39: =IF(D39>0,"F","") ->  | B39: ALVENARIA E DIVISÓRIAS | D39: =Orçamento!V524 -> 0 | E39: =Orçamento!X524 -> 0 | F39: =D39-J39-N39 -> 0 | J39: =ROUND(J41*$D$39,2) -> 0 | N39: =ROUND(N41*$D$39,2) -> 0 | R39: =SUM(F39:Q39) -> 0 | T39: =IF(R39=D39,"OK","ERRO") -> OK
A40: =IF(A39="F",A39,"") -> 
A41: =IF(A40="F",A40,"") ->  | F41: 0.55 | J41: 0.25 | N41: 0.2 | R41: =IFERROR(E39/100,"") -> 0 | T41: =IF(E39%=R41,"OK","ERRADO") -> OK
A42: =IF(D42>0,"F","") ->  | B42: ALVENARIA AUTO-PORTANTE | D42: =Orçamento!V525 -> 0 | E42: =Orçamento!X525 -> 0 | F42: =ROUND(F44*$D$42,2) -> 0 | J42: =ROUND(J44*$D$42,2) -> 0 | N42: =ROUND(N44*$D$42,2) -> 0 | R42: =SUM(F42:Q42) -> 0
A43: =IF(A42="F",A42,"") -> 
A44: =IF(A43="F",A43,"") ->  | F44: 1 | J44: =1-B44 -> 1 | N44: =1-F44 -> 0 | R44: =IFERROR(E42/100,"") -> 0
A45: =IF(D45>0,"F","") ->  | B45: IMPERMEABILIZAÇÃO | D45: =Orçamento!V526 -> 0 | E45: =Orçamento!X526 -> 0 | F45: =ROUND(F47*$D$45,2) -> 0 | J45: =ROUND(J47*$D$45,2) -> 0 | N45: =ROUND(N47*$D$45,2) -> 0 | R45: =SUM(F45:Q45) -> 0 | T45: =IF(R45=D45,"OK","ERRO") -> OK
A46: =IF(A45="F",A45,"") -> 
A47: =IF(A46="F",A46,"") ->  | F47: 0.8 | J47: 0.2 | R47: =IFERROR(E45/100,"") -> 0 | T47: =IF(E45%=R47,"OK","ERRADO") -> OK
A48: =IF(D48>0,"F","") ->  | B48: ISOLAMENTO TÉRMICO E ACÚSTICO | D48: =Orçamento!V527 -> 0 | E48: =Orçamento!X527 -> 0 | F48: =ROUND(F50*$D$48,2) -> 0 | J48: =ROUND(J50*$D$48,2) -> 0 | N48: =ROUND(N50*$D$48,2) -> 0 | R48: =SUM(F48:Q48) -> 0
A49: =IF(A48="F",A48,"") -> 
A50: =IF(A49="F",A49,"") ->  | F50: 0.5 | J50: =1-B50 -> 1 | N50: =1-F50 -> 0.5 | R50: =IFERROR(E48/100,"") -> 0
A51: =IF(D51>0,"F","") ->  | B51: ESTRUTURA DE MADEIRA | D51: =Orçamento!V528 -> 0 | E51: =Orçamento!X528 -> 0 | F51: =ROUND(F53*$D$51,2) -> 0 | J51: =ROUND(J53*$D$51,2) -> 0 | N51: =ROUND(N53*$D$51,2) -> 0 | R51: =SUM(F51:Q51) -> 0 | T51: =IF(R51=D51,"OK","ERRO") -> OK
A52: =IF(A51="F",A51,"") -> 
A53: =IF(A52="F",A52,"") ->  | F53: 0.2 | J53: 0.8 | R53: =IFERROR(E51/100,"") -> 0 | T53: =IF(E51%=R53,"OK","ERRADO") -> OK
A54: =IF(D54>0,"F","") ->  | B54: ESTRUTURA METÁLICA | D54: =Orçamento!V529 -> 0 | E54: =Orçamento!X529 -> 0 | F54: =ROUND(F56*$D$54,2) -> 0 | J54: =ROUND(J56*$D$54,2) -> 0 | N54: =ROUND(N56*$D$54,2) -> 0 | R54: =SUM(F54:Q54) -> 0 | T54: =IF(R54=D54,"OK","ERRO") -> OK
A55: =IF(A54="F",A54,"") -> 
A56: =IF(A55="F",A55,"") ->  | F56: 0.2 | J56: 0.8 | R56: =IFERROR(E54/100,"") -> 0 | T56: =IF(E54%=R56,"OK","ERRADO") -> OK
A57: =IF(D57>0,"F","") ->  | B57: COBERTURAS | D57: =Orçamento!V530 -> 0 | E57: =Orçamento!X530 -> 0 | F57: =ROUND(F59*$D$57,2) -> 0 | J57: =ROUND(J59*$D$57,2) -> 0 | N57: =ROUND(N59*$D$57,2) -> 0 | R57: =SUM(F57:Q57) -> 0 | T57: =IF(R57=D57,"OK","ERRO") -> OK
A58: =IF(A57="F",A57,"") -> 
A59: =IF(A58="F",A58,"") ->  | F59: 0 | J59: =1-B59 -> 1 | R59: =IFERROR(E57/100,"") -> 0 | T59: =IF(E57%=R59,"OK","ERRADO") -> OK
A60: =IF(D60>0,"F","") ->  | B60: ESQUADRIAS DE MADEIRA | D60: =Orçamento!V531 -> 0 | E60: =Orçamento!X531 -> 0 | F60: =ROUND(F62*$D$60,2) -> 0 | J60: =ROUND(J62*$D$60,2) -> 0 | N60: =ROUND(N62*$D$60,2) -> 0 | R60: =SUM(F60:Q60) -> 0
A61: =IF(A60="F",A60,"") -> 
A62: =IF(A61="F",A61,"") ->  | F62: 0.54 | J62: =1-B62 -> 1 | N62: =1-F62 -> 0.46 | R62: =IFERROR(E60/100,"") -> 0
A63: =IF(D63>0,"F","") ->  | B63: ESQUADRIAS METÁLICAS | D63: =Orçamento!V532 -> 0 | E63: =Orçamento!X532 -> 0 | F63: =ROUND(F65*$D$63,2) -> 0 | J63: =ROUND(J65*$D$63,2) -> 0 | N63: =ROUND(N65*$D$63,2) -> 0 | R63: =SUM(F63:Q63) -> 0 | T63: =IF(R63=D63,"OK","ERRO") -> OK
A64: =IF(A63="F",A63,"") -> 
A65: =IF(A64="F",A64,"") ->  | N65: 1 | R65: =IFERROR(E63/100,"") -> 0 | T65: =IF(E63%=R65,"OK","ERRADO") -> OK
A66: =IF(D66>0,"F","") ->  | B66: VIDROS | D66: =Orçamento!V533 -> 0 | E66: =Orçamento!X533 -> 0 | F66: =ROUND(F68*$D$66,2) -> 0 | J66: =ROUND(J68*$D$66,2) -> 0 | N66: =ROUND(N68*$D$66,2) -> 0 | R66: =SUM(F66:Q66) -> 0 | T66: =IF(R66=D66,"OK","ERRO") -> OK
A67: =IF(A66="F",A66,"") -> 
A68: =IF(A67="F",A67,"") ->  | F68: 0 | N68: =1-F68 -> 1 | R68: =IFERROR(E66/100,"") -> 0 | T68: =IF(E66%=R68,"OK","ERRADO") -> OK
A69: =IF(D69>0,"F","") ->  | B69: REVESTIMENTO DE PAREDE | D69: =Orçamento!V534 -> 0 | E69: =Orçamento!X534 -> 0 | F69: =ROUND(F71*$D$69,2) -> 0 | J69: =ROUND(J71*$D$69,2) -> 0 | N69: =ROUND(N71*$D$69,2) -> 0 | R69: =SUM(F69:Q69) -> 0 | T69: =IF(R69=D69,"OK","ERRO") -> OK
A70: =IF(A69="F",A69,"") -> 
A71: =IF(A70="F",A70,"") ->  | F71: 0.55 | J71: 0.25 | N71: 0.2 | R71: =IFERROR(E69/100,"") -> 0 | T71: =IF(E69%=R71,"OK","ERRADO") -> OK
A72: =IF(D72>0,"F","") ->  | B72: FORROS | D72: =Orçamento!V535 -> 0 | E72: =Orçamento!X535 -> 0 | F72: =ROUND(F74*$D$72,2) -> 0 | J72: =ROUND(J74*$D$72,2) -> 0 | N72: =ROUND(N74*$D$72,2) -> 0 | R72: =SUM(F72:Q72) -> 0 | T72: =IF(R72=D72,"OK","ERRO") -> OK
A73: =IF(A72="F",A72,"") -> 
A74: =IF(A73="F",A73,"") ->  | N74: =1-F74 -> 1 | R74: =IFERROR(E72/100,"") -> 0 | T74: =IF(E72%=R74,"OK","ERRADO") -> OK
A75: =IF(D75>0,"F","") ->  | B75: REVESTIMENTO DE PISO | D75: =Orçamento!V536 -> 0 | E75: =Orçamento!X536 -> 0 | F75: =ROUND(F77*$D$75,2) -> 0 | J75: =ROUND(J77*$D$75,2) -> 0 | N75: =ROUND(N77*$D$75,2) -> 0 | R75: =SUM(F75:Q75) -> 0 | T75: =IF(R75=D75,"OK","ERRO") -> OK
A76: =IF(A75="F",A75,"") -> 
A77: =IF(A76="F",A76,"") ->  | F77: 0.5 | J77: 0.3 | N77: 0.2 | R77: =IFERROR(E75/100,"") -> 0 | T77: =IF(E75%=R77,"OK","ERRADO") -> OK
A78: =IF(D78>0,"F","") ->  | B78: FERRAGENS | D78: =Orçamento!V537 -> 0 | E78: =Orçamento!X537 -> 0 | F78: =ROUND(F80*$D$78,2) -> 0 | J78: =ROUND(J80*$D$78,2) -> 0 | N78: =ROUND(N80*$D$78,2) -> 0 | R78: =SUM(F78:Q78) -> 0 | T78: =IF(R78=D78,"OK","ERRO") -> OK
A79: =IF(A78="F",A78,"") -> 
A80: =IF(A79="F",A79,"") ->  | F80: 0 | N80: =1-F80 -> 1 | R80: =IFERROR(E78/100,"") -> 0 | T80: =IF(E78%=R80,"OK","ERRADO") -> OK
A81: =IF(D81>0,"F","") ->  | B81: MARCENARIA | D81: =Orçamento!V538 -> 0 | E81: =Orçamento!X538 -> 0 | F81: =ROUND(F83*$D$81,2) -> 0 | J81: =ROUND(J83*$D$81,2) -> 0 | N81: =ROUND(N83*$D$81,2) -> 0 | R81: =SUM(F81:Q81) -> 0
A82: =IF(A81="F",A81,"") -> 
A83: =IF(A82="F",A82,"") ->  | N83: =1-F83 -> 1 | R83: =IFERROR(E81/100,"") -> 0
A84: =IF(D84>0,"F","") ->  | B84: ADMINISTRAÇÃO - MENSALISTAS | D84: =Orçamento!V539 -> 0 | E84: =Orçamento!X539 -> 0 | F84: =ROUND(F86*$D$84,2)+0.01 -> 0.01 | J84: =ROUND(J86*$D$84,2) -> 0 | N84: =ROUND(N86*$D$84,2) -> 0 | R84: =SUM(F84:Q84) -> 0.01 | T84: =IF(R84=D84,"OK","ERRO") -> ERRO | V84: 1
A85: =IF(A84="F",A84,"") -> 
A86: =IF(A85="F",A85,"") ->  | F86: 0.34 | J86: 0.33 | N86: 0.33 | R86: =IFERROR(E84/100,"") -> 0 | T86: =IF(E84%=R86,"OK","ERRADO") -> OK
A87: =IF(D87>0,"F","") ->  | B87: PINTURA | D87: =Orçamento!V540 -> 0 | E87: =Orçamento!X540 -> 0 | F87: =ROUND(F89*$D$87,2) -> 0 | J87: =ROUND(J89*$D$87,2) -> 0 | N87: =ROUND(N89*$D$87,2) -> 0 | R87: =SUM(F87:Q87) -> 0 | T87: =IF(R87=D87,"OK","ERRO") -> OK
A88: =IF(A87="F",A87,"") -> 
A89: =IF(A88="F",A88,"") ->  | F89: 0 | J89: 0.6 | N89: 0.4 | R89: =IFERROR(E87/100,"") -> 0 | T89: =IF(E87%=R89,"OK","ERRADO") -> OK
A90: =IF(D90>0,"F","") ->  | B90: DIVERSOS | D90: =Orçamento!V541 -> 0 | E90: =Orçamento!X541 -> 0 | F90: =ROUND(F92*$D$90,2)-0.01 -> -0.01 | J90: =ROUND(J92*$D$90,2) -> 0 | N90: =ROUND(N92*$D$90,2) -> 0 | R90: =SUM(F90:Q90) -> -0.01 | T90: =IF(R90=D90,"OK","ERRO") -> ERRO | V90: 1
A91: =IF(A90="F",A90,"") -> 
A92: =IF(A91="F",A91,"") ->  | F92: 0.55 | J92: 0.25 | N92: 0.2 | R92: =IFERROR(E90/100,"") -> 0 | T92: =IF(E90%=R92,"OK","ERRADO") -> OK
A93: F | B93: CUSTO DO ORÇAMENTO | D93: =SUM(D15:D92) -> 0 | E93: =SUM(E15:E92) -> 0 | F93: =F15+F18+F21+F24+F27+F30+F33+F36+F39+F42+F45+F48+F51+F54+F57+F60+F63+F66+F69+F72+F75+F78+F81+F84+F87+F90 -> 0 | J93: =J15+J18+J21+J24+J27+J30+J33+J36+J39+J42+J45+J48+J51+J54+J57+J60+J63+J66+J69+J72+J75+J78+J81+J84+J87+J90 -> 0 | N93: =N15+N18+N21+N24+N27+N30+N33+N36+N39+N42+N45+N48+N51+N54+N57+N60+N63+N66+N69+N72+N75+N78+N81+N84+N87+N90 -> -0.02 | R93: =R15+R18+R21+R24+R27+R30+R33+R36+R39+R42+R45+R48+R51+R54+R57+R60+R63+R66+R69+R72+R75+R78+R81+R84+R87+R90 -> -0.02
A94: F | B94: PERCENTUAIS: | F94: =IFERROR(F93/D93,"") ->  | J94: =IFERROR(J93/D93,"") ->  | N94: =IFERROR(N93/D93,"") ->  | R94: =SUM(F94:Q94) -> 0 | T94: =IF(D93=R93,"CERTO","ERRADO") -> ERRADO
A95: F | B95: TOTAIS ACUMULADOS: | F95: =F93 -> 0 | J95: =F95+J93 -> 0 | N95: =J95+N93 -> -0.02
A96: F | B96: PERCENTUAIS ACUMULADOS: | F96: =F94 ->  | J96: =IFERROR(F96+J94,"") ->  | N96: =IFERROR(J96+N94,"") -> 
A97: F
A98: F | B98: OBSERVAÇÕES:
A99: F | B99: Os pagamentos somente poderão ser efetuados mediante medição e atesto pelos técnicos da Secretaria da Educação.

Sheet Composição BDI
A3: UNIDADE ESCOLAR
A4: =Orçamento!$O$4 -> CENTRO DE ENSINO EM PERÍODO INTEGRAL NOVO HORIZONTE
A6: OBRA
A7: =Orçamento!$O$7 -> REFORMA E AMPLIAÇÃO
A9: ENDEREÇO
A10: =Orçamento!$R$10 -> ALAMEDA DAS PALMEIRAS, QD. 51-A S/N, NOVO HORIZONTE, CEP:74363-810
A12: CIDADE
A13: =Orçamento!$V$7 -> GOIÂNIA
A15: CRE
A16: =Orçamento!$O$10 -> GOIÂNIA
A18: DETALHAMENTO DA COMPOSIÇÃO DE BDI
A19: COMPOSIÇÃO BDI PARA OBRAS CIVIS | F19: BDI CONSTRUÇÃO E REFORMA
A20: DESCRIÇÃO | B20: COEF. | C20: TAXA % (a.m) | D20: % no preço de venda | F20: Situação | G20: 1º Quartil | H20: Médio | I20: 3º Quartil
A21: 1) COFINS | B21: 1 | C21: 0.03 | D21: =C21 -> 0.03 | F21: =IF(OR(C21<G21,C21>I21),"FORA DO INTERVALO","OK") -> OK | G21: 0.03 | H21: 0.03 | I21: 0.03
A22: 2) PIS | B22: 1 | C22: 0.0065 | D22: =C22 -> 0.0065 | F22: =IF(OR(C22<G22,C22>I22),"FORA DO INTERVALO","OK") -> OK | G22: 0.0065 | H22: 0.0065 | I22: 0.0065
A23: 3) ISSQN | B23: 1 | C23: 0.03 | D23: =C23*B23 -> 0.03 | F23: OK | G23: 0.02 | H23: 0.035 | I23: 0.05
A24: 4) CPRB | B24: 1 | C24: 0.045 | D24: =C24 -> 0.045 | F24: OK | G24: 0.045 | H24: 0.045 | I24: 0.045
A25: 5) Administração Central | B25: 1 | C25: 0.0312 | D25: 0.0312 | F25: OK | G25: 0.03 | H25: 0.04 | I25: 0.055
A26: 6) Despesas Financeiras | B26: 1 | C26: 0.0056 | D26: 0.0056 | F26: FORA DO INTERVALO | G26: 0.0059 | H26: 0.0123 | I26: 0.0139
A27: 7) Seguros + Garantias | B27: 1 | C27: 0.0012 | D27: 0.0012 | F27: FORA DO INTERVALO | G27: 0.008 | H27: 0.008 | I27: 0.01
A28: 8) Risco | B28: 1 | C28: 0.0097 | D28: 0.0097 | F28: OK | G28: 0.0097 | H28: 0.0127 | I28: 0.0127
A29: 9) Lucro | B29: 1 | C29: 0.072 | D29: 0.072 | F29: OK | G29: 0.0616 | H29: 0.074 | I29: 0.0896
A30: BDI - FINAL | D30: =(((1+D25+D27+D28)*(1+D26)*(1+D29))/(1-(D21+D22+D23+D24))-1) -> 0.2643636857 | F30: =IF(OR(D30<G30,D30>I30),"FORA DO INTERVALO","OK") -> FORA DO INTERVALO | G30: 0.2034 | H30: 0.2212 | I30: 0.25
A32: Notas:
A33: (1) e (2) Alíquota definida por lei.
A34: (3) Alíquota e base de cálculo definidas pela legislação municipal.
A35: (4) Alíquota definida pelas leis 12.546/11, 12844/13 e 13.161/15 (CPRB – contribuição previdenciária sobre a receita bruta).
A36: (5) Valores definidos a partir dos limites no Acórdão nº 2.622/2013 - TCU – Plenário. Valores entre o 1º e 3º quartis.
A37: (6) Valor calculado pela expressão matemática do acórdão 2.369/2011 – TCU – Plenário e disponibilizado pela AGETOP em dezembro de 2018. (Foi utilizado para o cálculo a média da Taxa SELIC no período de 11/2017 a 10/2018)
A39: (7) Valores definidos pela AGETOP a partir dos limites no Acórdão nº 2.622/2013 - TCU – Plenário. Valores médios. Observação da AGETOP: (Seguros contra erros de execução, incêndio e explosão, danos da natureza (vendaval, destelhamento, alagamento, inundação, desmoronamento, geadas etc.), emprego de material defeituoso ou inadequado, roubo e/ou furto qualificado, quebra de equipamentos, desmoronamento de estrutura, nas modalidades de Obras Civis em Construção (OCC); Instalação e Montagem (IM); e Obras Civis em Construção e Instalação e Montagem (OCC/IM). Bem como coberturas adicionais para ampliação dessas coberturas básicas, como: cobertura de responsabilidade civil geral, cobertura de responsabilidade civil cruzada, cobertura de despesas extraordinárias, cobertura de tumultos, cobertura de desentulho do local, cobertura de riscos do fabricante, dentre outras, incluindo o seguro de vida em grupo regido pela convenção coletiva dos trabalhadores na indústria da construção civil). A partir de 24/02/2015 por intermédio da Portaria 449/2015 a Presidência da AGETOP, na pessoa do Senhor Jayme Eduardo Rincon, determinou a exclusão dos valores referentes aos Seguros de Risco de Engenharia e Responsabilidade Civil do Profissional na composição do cálculo do B.D.I..
A40: (8) Valores definidos a partir dos limites no Acórdão nº 2.622/2013 - TCU – Plenário. Valores entre 1º e 3° quartis.
A41: (9) Valores definidos a partir dos limites definidos no Acórdão nº 2.622/2013 - TCU – Plenário. Valores adotados e praticados no mercado ( “ ex ante ” ) ou aqueles entre os 1º e 3º quartis.
A43: (*) A fórmula para estipulação da taxa de BDI estimado adotado é a mesma que foi aplicada para a obtenção das tabelas contidas no Acórdão n. 2.622/2013 – TCUPlenário
A45: Obs.: Para obras com valores superiores a R$ 20.000.000,00 sugere-se recalcular o BDI, dimensionando as taxas de administração central e lucro para patamares inferiores ao estipulado acima.

Sheet Relatório CENTRAL
B3: UNIDADE ESCOLAR | D3: CIDADE
B4: =Orçamento!$O$4 -> CENTRO DE ENSINO EM PERÍODO INTEGRAL NOVO HORIZONTE | D4: =Orçamento!$V$7 -> GOIÂNIA
B6: OBRA | D6: CRE
B7: =Orçamento!$O$7 -> REFORMA E AMPLIAÇÃO | D7: =Orçamento!$O$10 -> GOIÂNIA
B9: ENDEREÇO | D9: DATA
A10: FILTRO | B10: =Orçamento!$R$10 -> ALAMEDA DAS PALMEIRAS, QD. 51-A S/N, NOVO HORIZONTE, CEP:74363-810 | D10: =Orçamento!$S$7 -> 2020-04-16
B12: RELATÓRIO CENTRAL
A13: ↓ | B13: CÓDIGO | C13: ETAPA | D13: PREÇO (R$) C/ BDI | E13: PARTIC ( % )
A14: =IF(D14>0,"F","") ->  | B14: =Orçamento!O516 -> a. | C14: =Orçamento!P516 -> SERVIÇOS PRELIMINARES | D14: =Orçamento!V516 -> 0 | E14: =Orçamento!X516 -> 0
A15: =IF(D15>0,"F","") ->  | B15: =Orçamento!O517 -> b. | C15: =Orçamento!P517 -> TRANSPORTES | D15: =Orçamento!V517 -> 0 | E15: =Orçamento!X517 -> 0
B16: =Orçamento!O518 -> c. | C16: =Orçamento!P518 -> SERVIÇO EM TERRA | D16: =Orçamento!V518 -> 0 | E16: =Orçamento!X518 -> 0
B17: =Orçamento!O519 -> d. | C17: =Orçamento!P519 -> FUNDAÇÕES E SONDAGENS | D17: =Orçamento!V519 -> 0 | E17: =Orçamento!X519 -> 0
B18: =Orçamento!O520 -> e. | C18: =Orçamento!P520 -> ESTRUTURA | D18: =Orçamento!V520 -> 0 | E18: =Orçamento!X520 -> 0
B19: =Orçamento!O521 -> f. | C19: =Orçamento!P521 -> INSTALAÇÕES ELÉTRICAS | D19: =Orçamento!V521 -> 0 | E19: =Orçamento!X521 -> 0
B20: =Orçamento!O522 -> g. | C20: =Orçamento!P522 -> INSTALAÇÕES HIDROSSANITÁRIAS | D20: =Orçamento!V522 -> 0 | E20: =Orçamento!X522 -> 0
B21: =Orçamento!O523 -> h | C21: =Orçamento!P523 -> INSTALAÇÕES ESPECIAIS | D21: =Orçamento!V523 -> 0 | E21: =Orçamento!X523 -> 0
B22: =Orçamento!O524 -> i. | C22: =Orçamento!P524 -> ALVENARIAS E DIVISÓRIAS | D22: =Orçamento!V524 -> 0 | E22: =Orçamento!X524 -> 0
B23: =Orçamento!O525 -> j. | C23: =Orçamento!P525 -> ALVENARIA AUTO-PORTANTE | D23: =Orçamento!V525 -> 0 | E23: =Orçamento!X525 -> 0
B24: =Orçamento!O526 -> k. | C24: =Orçamento!P526 -> IMPERMEABILIZAÇÃO | D24: =Orçamento!V526 -> 0 | E24: =Orçamento!X526 -> 0
B25: =Orçamento!O527 -> l. | C25: =Orçamento!P527 -> ISOLAMENTO TÉRMICO E ACÚSTICO | D25: =Orçamento!V527 -> 0 | E25: =Orçamento!X527 -> 0
B26: =Orçamento!O528 -> m. | C26: =Orçamento!P528 -> ESTRUTURA DE MADEIRA | D26: =Orçamento!V528 -> 0 | E26: =Orçamento!X528 -> 0
B27: =Orçamento!O529 -> n. | C27: =Orçamento!P529 -> ESTRUTURAS METÁLICAS | D27: =Orçamento!V529 -> 0 | E27: =Orçamento!X529 -> 0
B28: =Orçamento!O530 -> o. | C28: =Orçamento!P530 -> COBERTURAS | D28: =Orçamento!V530 -> 0 | E28: =Orçamento!X530 -> 0
B29: =Orçamento!O531 -> p. | C29: =Orçamento!P531 -> ESQUADRIAS DE MADEIRA | D29: =Orçamento!V531 -> 0 | E29: =Orçamento!X531 -> 0
B30: =Orçamento!O532 -> q. | C30: =Orçamento!P532 -> ESQUADRIAS METÁLICAS | D30: =Orçamento!V532 -> 0 | E30: =Orçamento!X532 -> 0
B31: =Orçamento!O533 -> r. | C31: =Orçamento!P533 -> VIDROS | D31: =Orçamento!V533 -> 0 | E31: =Orçamento!X533 -> 0
B32: =Orçamento!O534 -> s. | C32: =Orçamento!P534 -> REVESTIMENTO DE PAREDE | D32: =Orçamento!V534 -> 0 | E32: =Orçamento!X534 -> 0
B33: =Orçamento!O535 -> t. | C33: =Orçamento!P535 -> FORROS | D33: =Orçamento!V535 -> 0 | E33: =Orçamento!X535 -> 0
B34: =Orçamento!O536 -> u. | C34: =Orçamento!P536 -> REVESTIMENTO DE PISO | D34: =Orçamento!V536 -> 0 | E34: =Orçamento!X536 -> 0
B35: =Orçamento!O537 -> v. | C35: =Orçamento!P537 -> FERRAGENS | D35: =Orçamento!V537 -> 0 | E35: =Orçamento!X537 -> 0
B36: =Orçamento!O538 -> w. | C36: =Orçamento!P538 -> MARCENARIA | D36: =Orçamento!V538 -> 0 | E36: =Orçamento!X538 -> 0
B37: =Orçamento!O539 -> x. | C37: =Orçamento!P539 -> ADMINISTRAÇÃO | D37: =Orçamento!V539 -> 0 | E37: =Orçamento!X539 -> 0
B38: =Orçamento!O540 -> y. | C38: =Orçamento!P540 -> PINTURA | D38: =Orçamento!V540 -> 0 | E38: =Orçamento!X540 -> 0
B39: =Orçamento!O541 -> z. | C39: =Orçamento!P541 -> DIVERSOS | D39: =Orçamento!V541 -> 0 | E39: =Orçamento!X541 -> 0
A40: F | B40: TOTAL GERAL DO ORÇAMENTO (R$) C/BDI | D40: =SUM(D14:D39) -> 0 | E40: =SUM(E14:E39) -> 0

Sheet Parc Maior Relev
B3: UNIDADE ESCOLAR | E3: CÓDIGO INEP
B4: =Orçamento!$O$4 -> CENTRO DE ENSINO EM PERÍODO INTEGRAL NOVO HORIZONTE | E4: =Orçamento!$V$4 -> 52033945
B6: OBRA | E6: CIDADE
B7: =Orçamento!$O$7 -> REFORMA E AMPLIAÇÃO | E7: =Orçamento!$V$7 -> GOIÂNIA
B9: CRE | E9: ÁREA TOTAL CONSTRUÍDA (M²)
B10: =Orçamento!$O$10 -> GOIÂNIA | E10: =Orçamento!$S$13 -> 2682.79
A11: FILTRO
B12: PARCELA DE MAIOR RELEVÂNCIA
B13: CÓDIGO | C13: SERVIÇO | D13: DESCRIÇÃO | E13: UNID | F13: QUANT | G13: PARC. MAIOR RELEV (100%)
B14: 70000 | C14: INSTALAÇÕES ELÉTRICAS | D14: =Orçamento!R226 -> SUBESTAÇÃO 112,5 KVA | E14: KVA | F14: 1 | G14: 1 | H14: 1
B16: CÓDIGO | C16: SERVIÇO | D16: DESCRIÇÃO | E16: UNID | F16: QUANT | G16: PARC. MAIOR RELEV (50%)
B17: 160000 | C17: COBERTURAS | D17: ESTRUTURA-TELHA CERÂMICA | E17: M2 | F17: =Orçamento!T163 -> 830.82 | G17: =F17*0.5 -> 415.41
B18: 160000 | C18: COBERTURAS | D18: TELHAMENTO COM TELHA CERÂMICA | E18: M2 | F18: =Orçamento!T167 -> 883.44 | G18: =F18*0.5 -> 441.72
A19: F
A20: F | B20: (*) Para os fins do inciso I dp § 1º do Art. 30 da Lei Federal 8.666/93, são consideradas parcelas de maior relevância técnica as execuções apresentadas
A21: F

Sheet Composições
A4: UNIDADE ESCOLAR | H4: CÓDIGO INEP
A5: =Orçamento!$O$4 -> CENTRO DE ENSINO EM PERÍODO INTEGRAL NOVO HORIZONTE | H5: =Orçamento!$V$4 -> 52033945
A7: OBRA | H7: CIDADE
A8: =Orçamento!$O$7 -> REFORMA E AMPLIAÇÃO | H8: =Orçamento!$V$7 -> GOIÂNIA
A10: CRE | D10: ENDEREÇO | H10: REFERÊNCIA AGETOP
A11: =Orçamento!$O$10 -> GOIÂNIA | D11: =Orçamento!$R$10 -> ALAMEDA DAS PALMEIRAS, QD. 51-A S/N, NOVO HORIZONTE, CEP:74363-810 | H11: =Orçamento!$V$10 -> DEZ/18 | I11: =Orçamento!$W$10 -> DESONERADA
A13: DATA | D13: ÁREA TOTAL CONSTRUÍDA (M²) | H13: REFERÊNCIA SINAPI
A14: =Orçamento!$S$7 -> 2020-04-16 | D14: =Orçamento!$S$13 -> 2682.79 | H14: =Orçamento!$V$13 -> JUL/19 | I14: =Orçamento!$W$13 -> DESONERADA
A16: COMPOSIÇÕES DE CUSTOS UNITÁRIOS - SEE-GO
A17: 428 | B17: FONTE | C17: CÓDIGO | D17: DESCRIÇÃO | E17: UNIDADE | F17: COEFIC. | G17: CUSTO UNITÁRIO | I17: CUSTO TOTAL (A) + (B) + (C) + (D) + (E)
G18: DESONERADO | H18: NÃO DESONER. | I18: DESONERADO | J18: NÃO DESONER.
B19: COMPOSIÇÃO | C19: COMP 428_SEE | D19: DEMOLIÇÃO DE ALAMBRADO COM TUBO GALVANIZADO C/ TR. ATE CB. E CARGA | E19: M | I19: 9.84 | J19: 11.41
B20: AGETOP_I | C20: 5 | D20: SERVENTE | E20: h | F20: 1.2 | G20: 8.2 | H20: 9.51 | I20: 9.84 | J20: 11.41
G21: 0 | H21: 0 | I21: 0 | J21: 0
G22: 0 | H22: 0 | I22: 0 | J22: 0
B23: MÃO DE OBRA (B) - TOTAL | I23: 9.84 | J23: 11.41
G24: 0 | H24: 0 | I24: 0 | J24: 0
G25: 0 | H25: 0 | I25: 0 | J25: 0
G26: 0 | H26: 0 | I26: 0 | J26: 0
B27: MATERIAL (C) - TOTAL | I27: 0 | J27: 0
A29: 382 | B29: FONTE | C29: CÓDIGO | D29: DESCRIÇÃO | E29: UNIDADE | F29: COEFIC. | G29: CUSTO UNITÁRIO | I29: CUSTO TOTAL (A) + (B) + (C) + (D) + (E)
G30: DESONERADO | H30: NÃO DESONER. | I30: DESONERADO | J30: NÃO DESONER.
B31: COMPOSIÇÃO | C31: COMP 382_SEE | D31: TE DE REDUCAO DE FERRO GALVANIZADO, COM ROSCA BSP, DE 3/4" X 1/2" | E31: UN | I31: 22.42 | J31: 24.51
B32: AGETOP_I | C32: 8 | D32: AJUDANTE | E32: h | F32: 0.6 | G32: 8.2 | H32: 9.51 | I32: 4.92 | J32: 5.71
B33: AGETOP_I | C33: 11 | D33: ENCANADOR | E33: h | F33: 0.6105 | G33: 13.4 | H33: 15.53 | I33: 8.18 | J33: 9.48
G34: 0 | H34: 0 | I34: 0 | J34: 0
B35: MÃO DE OBRA (B) - TOTAL | I35: 13.1 | J35: 15.19
B36: SINAPI_I | C36: 3146 | D36: FITA VEDA ROSCA EM ROLOS DE 18 MM X 10 M (L X C) | E36: UN | F36: 0.120754717 | G36: 3.5 | H36: 3.5 | I36: 0.42 | J36: 0.42
B37: SINAPI_I | C37: 6302 | D37: TE DE REDUCAO DE FERRO GALVANIZADO, COM ROSCA BSP, DE 3/4" X 1/2" | E37: UN | F37: 1 | G37: 8.9 | H37: 8.9 | I37: 8.9 | J37: 8.9
G38: 0 | H38: 0 | I38: 0 | J38: 0
B39: MATERIAL (C) - TOTAL | I39: 9.32 | J39: 9.32
A41: 383 | B41: FONTE | C41: CÓDIGO | D41: DESCRIÇÃO | E41: UNIDADE | F41: COEFIC. | G41: CUSTO UNITÁRIO | I41: CUSTO TOTAL (A) + (B) + (C) + (D) + (E)
G42: DESONERADO | H42: NÃO DESONER. | I42: DESONERADO | J42: NÃO DESONER.
B43: COMPOSIÇÃO | C43: COMP 383_SEE | D43: BUCHA DE REDUCAO DE FERRO GALVANIZADO, COM ROSCA BSP, DE 1/2" X 1/4" | E43: UN | I43: 7.07 | J43: 7.62
B44: AGETOP_I | C44: 8 | D44: AJUDANTE | E44: h | F44: 0.16 | G44: 8.2 | H44: 9.51 | I44: 1.31 | J44: 1.52
B45: AGETOP_I | C45: 11 | D45: ENCANADOR | E45: h | F45: 0.16 | G45: 13.4 | H45: 15.53 | I45: 2.14 | J45: 2.48
G46: 0 | H46: 0 | I46: 0 | J46: 0
B47: MÃO DE OBRA (B) - TOTAL | I47: 3.45 | J47: 4
B48: AGETOP_I | C48: H689 | D48: FITA VEDAROSCA 12 MM | E48: m | F48: 1.2 | G48: 0.28 | H48: 0.28 | I48: 0.34 | J48: 0.34
B49: SINAPI_I | C49: 770 | D49: BUCHA DE REDUCAO DE FERRO GALVANIZADO, COM ROSCA BSP, DE 1/2" X 1/4" | E49: UN | F49: 1 | G49: 3.28 | H49: 3.28 | I49: 3.28 | J49: 3.28
G50: 0 | H50: 0 | I50: 0 | J50: 0
B51: MATERIAL (C) - TOTAL | I51: 3.62 | J51: 3.62
A53: 212 | B53: FONTE | C53: CÓDIGO | D53: DESCRIÇÃO | E53: UNIDADE | F53: COEFIC. | G53: CUSTO UNITÁRIO | I53: CUSTO TOTAL (A) + (B) + (C) + (D) + (E)
G54: DESONERADO | H54: NÃO DESONER. | I54: DESONERADO | J54: NÃO DESONER.
B55: COMPOSIÇÃO | C55: COMP 212_SEE | D55: NIPLE DE REDUÇÃO 1/2" X 1/4" BSP | E55: UN | I55: 9.5 | J55: 10.05
B56: AGETOP_I | C56: 8 | D56: AJUDANTE | E56: h | F56: 0.16 | G56: 8.2 | H56: 9.51 | I56: 1.31 | J56: 1.52
B57: AGETOP_I | C57: 11 | D57: ENCANADOR | E57: h | F57: 0.16 | G57: 13.4 | H57: 15.53 | I57: 2.14 | J57: 2.48
G58: 0 | H58: 0 | I58: 0 | J58: 0
B59: MÃO DE OBRA (B) - TOTAL | I59: 3.45 | J59: 4
B60: COTAÇÃO | C60: COT 103_SEE | D60: NIPLE DE REDUÇÃO 1/2" X 1/4" BSP | E60: UN | F60: 1 | G60: 6.053333333 | H60: 6.053333333 | I60: 6.05 | J60: 6.05
G61: 0 | H61: 0 | I61: 0 | J61: 0
G62: 0 | H62: 0 | I62: 0 | J62: 0
B63: MATERIAL (C) - TOTAL | I63: 6.05 | J63: 6.05
A65: 213 | B65: FONTE | C65: CÓDIGO | D65: DESCRIÇÃO | E65: UNIDADE | F65: COEFIC. | G65: CUSTO UNITÁRIO | I65: CUSTO TOTAL (A) + (B) + (C) + (D) + (E)
G66: DESONERADO | H66: NÃO DESONER. | I66: DESONERADO | J66: NÃO DESONER.
B67: COMPOSIÇÃO | C67: COMP 213_SEE | D67: NIPLE DE REDUÇÃO 3/4" X 1/2" BSP | E67: UN | I67: 13.16 | J67: 13.71
B68: AGETOP_I | C68: 8 | D68: AJUDANTE | E68: h | F68: 0.16 | G68: 8.2 | H68: 9.51 | I68: 1.31 | J68: 1.52
B69: AGETOP_I | C69: 11 | D69: ENCANADOR | E69: h | F69: 0.16 | G69: 13.4 | H69: 15.53 | I69: 2.14 | J69: 2.48
G70: 0 | H70: 0 | I70: 0 | J70: 0
B71: MÃO DE OBRA (B) - TOTAL | I71: 3.45 | J71: 4
B72: COTAÇÃO | C72: COT 104_SEE | D72: NIPLE DE REDUÇÃO 3/4" X 1/2" BSP | E72: UN | F72: 1 | G72: 9.71 | H72: 9.71 | I72: 9.71 | J72: 9.71
G73: 0 | H73: 0 | I73: 0 | J73: 0
G74: 0 | H74: 0 | I74: 0 | J74: 0
B75: MATERIAL (C) - TOTAL | I75: 9.71 | J75: 9.71
A77: 237 | B77: FONTE | C77: CÓDIGO | D77: DESCRIÇÃO | E77: UNIDADE | F77: COEFIC. | G77: CUSTO UNITÁRIO | I77: CUSTO TOTAL (A) + (B) + (C) + (D) + (E)
G78: DESONERADO | H78: NÃO DESONER. | I78: DESONERADO | J78: NÃO DESONER.
B79: COMPOSIÇÃO | C79: COMP 237_SEE | D79: FITA ANTICORROSIVA | E79: M | I79: 11.14 | J79: 11.83
B80: AGETOP_I | C80: 8 | D80: AJUDANTE | E80: h | F80: 0.2 | G80: 8.2 | H80: 9.51 | I80: 1.64 | J80: 1.9
B81: AGETOP_I | C81: 12 | D81: ELETRICISTA | E81: h | F81: 0.2 | G81: 13.4 | H81: 15.53 | I81: 2.68 | J81: 3.11
G82: 0 | H82: 0 | I82: 0 | J82: 0
B83: MÃO DE OBRA (B) - TOTAL | I83: 4.32 | J83: 5.01
B84: SINAPI_I | C84: 39634 | D84: FITA ADESIVA ANTICORROSIVA DE PVC FLEXIVEL, COR PRETA, PARA PROTECAO TUBULACAO, 50 MM X 30 M (L X C), E= *0,25* MM | E84: M | F84: 1 | G84: 6.82 | H84: 6.82 | I84: 6.82 | J84: 6.82
G85: 0 | H85: 0 | I85: 0 | J85: 0
G86: 0 | H86: 0 | I86: 0 | J86: 0
B87: MATERIAL (C) - TOTAL | I87: 6.82 | J87: 6.82
A89: 542 | B89: FONTE | C89: CÓDIGO | D89: DESCRIÇÃO | E89: UNIDADE | F89: COEFIC. | G89: CUSTO UNITÁRIO | I89: CUSTO TOTAL (A) + (B) + (C) + (D) + (E)
G90: DESONERADO | H90: NÃO DESONER. | I90: DESONERADO | J90: NÃO DESONER.
B91: COMPOSIÇÃO | C91: COMP 542_SEE | D91: VÁLVULA UGV 3/4" (S) LATÃO | E91: UN | I91: 25.17 | J91: 26.66
B92: AGETOP_I | C92: 8 | D92: AJUDANTE | E92: h | F92: 0.432 | G92: 8.2 | H92: 9.51 | I92: 3.54 | J92: 4.11
B93: AGETOP_I | C93: 11 | D93: ENCANADOR | E93: h | F93: 0.432 | G93: 13.4 | H93: 15.53 | I93: 5.79 | J93: 6.71
G94: 0 | H94: 0 | I94: 0 | J94: 0
B95: MÃO DE OBRA (B) - TOTAL | I95: 9.33 | J95: 10.82
B96: COTAÇÃO | C96: COT 281_SEE | D96: VÁLVULA UGV 3/4" (S) LATÃO | E96: UN | F96: 1 | G96: 15.83666667 | H96: 15.83666667 | I96: 15.84 | J96: 15.84
G97: 0 | H97: 0 | I97: 0 | J97: 0
G98: 0 | H98: 0 | I98: 0 | J98: 0
B99: MATERIAL (C) - TOTAL | I99: 15.84 | J99: 15.84
A101: 543 | B101: FONTE | C101: CÓDIGO | D101: DESCRIÇÃO | E101: UNIDADE | F101: COEFIC. | G101: CUSTO UNITÁRIO | I101: CUSTO TOTAL (A) + (B) + (C) + (D) + (E)
G102: DESONERADO | H102: NÃO DESONER. | I102: DESONERADO | J102: NÃO DESONER.
B103: COMPOSIÇÃO | C103: COMP 543_SEE | D103: VÁLVULA UGV 1/2" (S) LATÃO | E103: UN | I103: 24.5 | J103: 25.99
B104: AGETOP_I | C104: 8 | D104: AJUDANTE | E104: h | F104: 0.432 | G104: 8.2 | H104: 9.51 | I104: 3.54 | J104: 4.11
B105: AGETOP_I | C105: 11 | D105: ENCANADOR | E105: h | F105: 0.432 | G105: 13.4 | H105: 15.53 | I105: 5.79 | J105: 6.71
G106: 0 | H106: 0 | I106: 0 | J106: 0
B107: MÃO DE OBRA (B) - TOTAL | I107: 9.33 | J107: 10.82
B108: COTAÇÃO | C108: COT 282_SEE | D108: VÁLVULA UGV 1/2" (S) LATÃO | E108: UN | F108: 1 | G108: 15.16666667 | H108: 15.16666667 | I108: 15.17 | J108: 15.17
G109: 0 | H109: 0 | I109: 0 | J109: 0
G110: 0 | H110: 0 | I110: 0 | J110: 0
B111: MATERIAL (C) - TOTAL | I111: 15.17 | J111: 15.17
A113: 211 | B113: FONTE | C113: CÓDIGO | D113: DESCRIÇÃO | E113: UNIDADE | F113: COEFIC. | G113: CUSTO UNITÁRIO | I113: CUSTO TOTAL (A) + (B) + (C) + (D) + (E)
G114: DESONERADO | H114: NÃO DESONER. | I114: DESONERADO | J114: NÃO DESONER.
B115: COMPOSIÇÃO | C115: COMP 211_SEE | D115: REGULADOR DE 2º ESTÁGIO 5KG/H | E115: UN | I115: 85.46 | J115: 89.42
B116: AGETOP_I | C116: 8 | D116: AJUDANTE | E116: h | F116: 1.15 | G116: 8.2 | H116: 9.51 | I116: 9.43 | J116: 10.94
B117: AGETOP_I | C117: 11 | D117: ENCANADOR | E117: h | F117: 1.15 | G117: 13.4 | H117: 15.53 | I117: 15.41 | J117: 17.86
G118: 0 | H118: 0 | I118: 0 | J118: 0
B119: MÃO DE OBRA (B) - TOTAL | I119: 24.84 | J119: 28.8
B120: COTAÇÃO | C120: COT 102_SEE | D120: REGULADOR DE 2º ESTÁGIO 5KG/H | E120: UN | F120: 1 | G120: 59.83333333 | H120: 59.83333333 | I120: 59.83 | J120: 59.83
B121: AGETOP_I | C121: H689 | D121: FITA VEDAROSCA 12 MM | E121: m | F121: 2.82 | G121: 0.28 | H121: 0.28 | I121: 0.79 | J121: 0.79
G122: 0 | H122: 0 | I122: 0 | J122: 0
B123: MATERIAL (C) - TOTAL | I123: 60.62 | J123: 60.62
A125: 210 | B125: FONTE | C125: CÓDIGO | D125: DESCRIÇÃO | E125: UNIDADE | F125: COEFIC. | G125: CUSTO UNITÁRIO | I125: CUSTO TOTAL (A) + (B) + (C) + (D) + (E)
G126: DESONERADO | H126: NÃO DESONER. | I126: DESONERADO | J126: NÃO DESONER.
B127: COMPOSIÇÃO | C127: COMP 210_SEE | D127: REGULADOR DE 1º ESTÁGIO 60KG/H MODELO AP-40 COM MANÔMETRO | E127: UN | I127: 231.21 | J127: 235.17
B128: AGETOP_I | C128: 8 | D128: AJUDANTE | E128: h | F128: 1.15 | G128: 8.2 | H128: 9.51 | I128: 9.43 | J128: 10.94
B129: AGETOP_I | C129: 11 | D129: ENCANADOR | E129: h | F129: 1.15 | G129: 13.4 | H129: 15.53 | I129: 15.41 | J129: 17.86
G130: 0 | H130: 0 | I130: 0 | J130: 0
B131: MÃO DE OBRA (B) - TOTAL | I131: 24.84 | J131: 28.8
B132: COTAÇÃO | C132: COT 101_SEE | D132: REGULADOR DE 1º ESTÁGIO 60KG/H MODELO AP-40 COM MANÔMETRO | E132: UN | F132: 1 | G132: 205.5766667 | H132: 205.5766667 | I132: 205.58 | J132: 205.58
B133: AGETOP_I | C133: H689 | D133: FITA VEDAROSCA 12 MM | E133: m | F133: 2.82 | G133: 0.28 | H133: 0.28 | I133: 0.79 | J133: 0.79
G134: 0 | H134: 0 | I134: 0 | J134: 0
B135: MATERIAL (C) - TOTAL | I135: 206.37 | J135: 206.37
A137: 235 | B137: FONTE | C137: CÓDIGO | D137: DESCRIÇÃO | E137: UNIDADE | F137: COEFIC. | G137: CUSTO UNITÁRIO | I137: CUSTO TOTAL (A) + (B) + (C) + (D) + (E)
G138: DESONERADO | H138: NÃO DESONER. | I138: DESONERADO | J138: NÃO DESONER.
B139: COMPOSIÇÃO | C139: COMP 235_SEE | D139: PLACA DE SINALIZAÇÃO EM PVC COD 01 - (300X300) PROIBIDO FUMAR | E139: UN | I139: 24.11 | J139: 24.23
B140: AGETOP_I | C140: 5 | D140: SERVENTE | E140: h | F140: 0.09 | G140: 8.2 | H140: 9.51 | I140: 0.74 | J140: 0.86
G141: 0 | H141: 0 | I141: 0 | J141: 0
G142: 0 | H142: 0 | I142: 0 | J142: 0
B143: MÃO DE OBRA (B) - TOTAL | I143: 0.74 | J143: 0.86
B144: AGETOP_I | C144: 3070 | D144: BUCHA DE NYLON S-6 | E144: un | F144: 2 | G144: 0.04 | H144: 0.04 | I144: 0.08 | J144: 0.08
B145: AGETOP_I | C145: 3393 | D145: PARAFUSO P/BUCHA S-6 | E145: un | F145: 2 | G145: 0.08 | H145: 0.08 | I145: 0.16 | J145: 0.16
B146: SINAPI_I | C146: 37556 | D146: PLACA DE SINALIZACAO DE SEGURANCA CONTRA INCENDIO, FOTOLUMINESCENTE, QUADRADA, *20 X 20* CM, EM PVC *2* MM ANTI-CHAMAS (SIMBOLOS, CORES E PICTOGRAMAS CONFORME NBR 13434) | E146: UN | F146: 1 | G146: 23.13 | H146: 23.13 | I146: 23.13 | J146: 23.13
B147: MATERIAL (C) - TOTAL | I147: 23.37 | J147: 23.37
A149: 236 | B149: FONTE | C149: CÓDIGO | D149: DESCRIÇÃO | E149: UNIDADE | F149: COEFIC. | G149: CUSTO UNITÁRIO | I149: CUSTO TOTAL (A) + (B) + (C) + (D) + (E)
G150: DESONERADO | H150: NÃO DESONER. | I150: DESONERADO | J150: NÃO DESONER.
B151: COMPOSIÇÃO | C151: COMP 236_SEE | D151: PLACA DE SINALIZAÇÃO EM PVC COD 06 - (300X300) PERIGO INFLAMÁVEL | E151: UN | I151: 24.11 | J151: 24.23
B152: AGETOP_I | C152: 5 | D152: SERVENTE | E152: h | F152: 0.09 | G152: 8.2 | H152: 9.51 | I152: 0.74 | J152: 0.86
G153: 0 | H153: 0 | I153: 0 | J153: 0
G154: 0 | H154: 0 | I154: 0 | J154: 0
B155: MÃO DE OBRA (B) - TOTAL | I155: 0.74 | J155: 0.86
B156: AGETOP_I | C156: 3070 | D156: BUCHA DE NYLON S-6 | E156: un | F156: 2 | G156: 0.04 | H156: 0.04 | I156: 0.08 | J156: 0.08
B157: AGETOP_I | C157: 3393 | D157: PARAFUSO P/BUCHA S-6 | E157: un | F157: 2 | G157: 0.08 | H157: 0.08 | I157: 0.16 | J157: 0.16
B158: SINAPI_I | C158: 37556 | D158: PLACA DE SINALIZACAO DE SEGURANCA CONTRA INCENDIO, FOTOLUMINESCENTE, QUADRADA, *20 X 20* CM, EM PVC *2* MM ANTI-CHAMAS (SIMBOLOS, CORES E PICTOGRAMAS CONFORME NBR 13434) | E158: UN | F158: 1 | G158: 23.13 | H158: 23.13 | I158: 23.13 | J158: 23.13
B159: MATERIAL (C) - TOTAL | I159: 23.37 | J159: 23.37
A161: 196 | B161: FONTE | C161: CÓDIGO | D161: DESCRIÇÃO | E161: UNIDADE | F161: COEFIC. | G161: CUSTO UNITÁRIO | I161: CUSTO TOTAL (A) + (B) + (C) + (D) + (E)
G162: DESONERADO | H162: NÃO DESONER. | I162: DESONERADO | J162: NÃO DESONER.
B163: COMPOSIÇÃO | C163: COMP 196_SEE | D163: COMPL. DE MURO DE ALV. DE TIJ. FURADO - 1/2 VEZ - C/ CHP. PEDRISCO - H=0,50 M | E163: M | I163: 28.8 | J163: 31.1
B164: AGETOP_I | C164: 5 | D164: SERVENTE | E164: h | F164: 0.619 | G164: 8.2 | H164: 9.51 | I164: 5.08 | J164: 5.89
B165: AGETOP_I | C165: 4 | D165: PEDREIRO | E165: h | F165: 0.5358 | G165: 13.4 | H165: 15.53 | I165: 7.18 | J165: 8.32
B166: MÃO DE OBRA (B) - TOTAL | I166: 12.26 | J166: 14.21
B167: AGETOP | C167: 60192 | D167: FORMA DE TABUA CINTA/PILAR SOBRE/ENTRE ALVENARIA U=8 VEZES | E167: m2 | F167: 0.1 | G167: 13.48 | H167: 14.53 | I167: 1.35 | J167: 1.45
B168: AGETOP | C168: 60303 | D168: ACO CA-50-A - 6,3 MM (1/4") - (OBRAS CIVIS) | E168: Kg | F168: 0.25 | G168: 6.58 | H168: 6.85 | I168: 1.65 | J168: 1.71
B169: AGETOP | C169: 60304 | D169: ACO CA-50 A - 8,0 MM (5/16") - (OBRAS CIVIS) | E169: Kg | F169: 0.3 | G169: 6.38 | H169: 6.65 | I169: 1.91 | J169: 2
B170: AGETOP | C170: 60314 | D170: ACO CA - 60 - 5,0 MM - (OBRAS CIVIS) | E170: Kg | F170: 0.15 | G170: 6.55 | H170: 6.8 | I170: 0.98 | J170: 1.02
B171: AGETOP | C171: 60505 | D171: PREPARO COM BETONEIRA E TRANSPORTE MANUAL DE CONCRETO FCK-15 - (O.C.) | E171: m3 | F171: 0.005 | G171: 305.72 | H171: 313.49 | I171: 1.53 | J171: 1.57
B172: AGETOP | C172: 60800 | D172: LANÇAMENTO/APLICAÇÃO/ADENSAMENTO DE CONCRETO USINADO BOMBEADO EM ESTRUTURA - (O.C.) | E172: m3 | F172: 0.005 | G172: 31.28 | H172: 36.24 | I172: 0.16 | J172: 0.18
B173: AGETOP_I | C173: 2034 | D173: TIJOLO FURADO 19x19x9 | E173: un | F173: 13.5 | G173: 0.48 | H173: 0.48 | I173: 6.48 | J173: 6.48
B174: AGETOP_I | C174: 1215 | D174: CIMENTO PORTLAND C.P. 32 | E174: Kg | F174: 1.425 | G174: 0.39 | H174: 0.39 | I174: 0.56 | J174: 0.56
B175: AGETOP_I | C175: 104 | D175: AREIA MEDIA | E175: m3 | F175: 0.009 | G175: 82.85 | H175: 82.85 | I175: 0.75 | J175: 0.75
B176: AGETOP_I | C176: 2388 | D176: PEDRISCO (DIAM. BRITA 0) | E176: m3 | F176: 0.007 | G176: 90.36 | H176: 90.36 | I176: 0.63 | J176: 0.63
B177: AGETOP_I | C177: 1221 | D177: CAL HIDRATADA | E177: Kg | F177: 1.0015 | G177: 0.54 | H177: 0.54 | I177: 0.54 | J177: 0.54
B178: MATERIAL (C) - TOTAL | I178: 16.54 | J178: 16.89
A180: 46 | B180: FONTE | C180: CÓDIGO | D180: DESCRIÇÃO | E180: UNIDADE | F180: COEFIC. | G180: CUSTO UNITÁRIO | I180: CUSTO TOTAL (A) + (B) + (C) + (D) + (E)
G181: DESONERADO | H181: NÃO DESONER. | I181: DESONERADO | J181: NÃO DESONER.
B182: COMPOSIÇÃO | C182: COMP 046_SEE | D182: CAPUZ PARA PROTEÇÃO DOS PARA RAIOS | E182: UN | I182: 16.53 | J182: 16.65
B183: AGETOP_I | C183: 8 | D183: AJUDANTE | E183: h | F183: 0.0333 | G183: 8.2 | H183: 9.51 | I183: 0.27 | J183: 0.32
B184: AGETOP_I | C184: 12 | D184: ELETRICISTA | E184: h | F184: 0.0333 | G184: 13.4 | H184: 15.53 | I184: 0.45 | J184: 0.52
G185: 0 | H185: 0 | I185: 0 | J185: 0
B186: MÃO DE OBRA (B) - TOTAL | I186: 0.72 | J186: 0.84
B187: COTAÇÃO | C187: COT 010_SEE | D187: CAPUZ PARA PROTEÇÃO DOS PARA RAIOS | E187: UN | F187: 1 | G187: 15.81 | H187: 15.81 | I187: 15.81 | J187: 15.81
G188: 0 | H188: 0 | I188: 0 | J188: 0
G189: 0 | H189: 0 | I189: 0 | J189: 0
B190: MATERIAL (C) - TOTAL | I190: 15.81 | J190: 15.81
A192: 47 | B192: FONTE | C192: CÓDIGO | D192: DESCRIÇÃO | E192: UNIDADE | F192: COEFIC. | G192: CUSTO UNITÁRIO | I192: CUSTO TOTAL (A) + (B) + (C) + (D) + (E)
G193: DESONERADO | H193: NÃO DESONER. | I193: DESONERADO | J193: NÃO DESONER.
B194: COMPOSIÇÃO | C194: COMP 047_SEE | D194: CAPUZ DE PROTEÇÃO PARA BUCHA DE TRANSFORMADOR | E194: UN | I194: 16.53 | J194: 16.65
B195: AGETOP_I | C195: 8 | D195: AJUDANTE | E195: h | F195: 0.0333 | G195: 8.2 | H195: 9.51 | I195: 0.27 | J195: 0.32
B196: AGETOP_I | C196: 12 | D196: ELETRICISTA | E196: h | F196: 0.0333 | G196: 13.4 | H196: 15.53 | I196: 0.45 | J196: 0.52
G197: 0 | H197: 0 | I197: 0 | J197: 0
B198: MÃO DE OBRA (B) - TOTAL | I198: 0.72 | J198: 0.84
B199: COTAÇÃO | C199: COT 011_SEE | D199: CAPUZ DE PROTEÇÃO PARA BUCHA DE TRANSFORMADOR | E199: UN | F199: 1 | G199: 15.81 | H199: 15.81 | I199: 15.81 | J199: 15.81
G200: 0 | H200: 0 | I200: 0 | J200: 0
G201: 0 | H201: 0 | I201: 0 | J201: 0
B202: MATERIAL (C) - TOTAL | I202: 15.81 | J202: 15.81
A204: 48 | B204: FONTE | C204: CÓDIGO | D204: DESCRIÇÃO | E204: UNIDADE | F204: COEFIC. | G204: CUSTO UNITÁRIO | I204: CUSTO TOTAL (A) + (B) + (C) + (D) + (E)
G205: DESONERADO | H205: NÃO DESONER. | I205: DESONERADO | J205: NÃO DESONER.
B206: COMPOSIÇÃO | C206: COMP 048_SEE | D206: HASTE ROSQUEADA "TIRANTE" 3/8" | E206: M | I206: 14.02 | J206: 15.39
B207: AGETOP_I | C207: 8 | D207: AJUDANTE | E207: h | F207: 0.4 | G207: 8.2 | H207: 9.51 | I207: 3.28 | J207: 3.8
B208: AGETOP_I | C208: 12 | D208: ELETRICISTA | E208: h | F208: 0.4 | G208: 13.4 | H208: 15.53 | I208: 5.36 | J208: 6.21
G209: 0 | H209: 0 | I209: 0 | J209: 0
B210: MÃO DE OBRA (B) - TOTAL | I210: 8.64 | J210: 10.01
B211: COTAÇÃO | C211: COT 012_SEE | D211: HASTE ROSQUEADA "TIRANTE" 3/8" | E211: M | F211: 1 | G211: 5.383333333 | H211: 5.383333333 | I211: 5.38 | J211: 5.38
G212: 0 | H212: 0 | I212: 0 | J212: 0
G213: 0 | H213: 0 | I213: 0 | J213: 0
B214: MATERIAL (C) - TOTAL | I214: 5.38 | J214: 5.38
A216: 49 | B216: FONTE | C216: CÓDIGO | D216: DESCRIÇÃO | E216: UNIDADE | F216: COEFIC. | G216: CUSTO UNITÁRIO | I216: CUSTO TOTAL (A) + (B) + (C) + (D) + (E)
G217: DESONERADO | H217: NÃO DESONER. | I217: DESONERADO | J217: NÃO DESONER.
B218: COMPOSIÇÃO | C218: COMP 049_SEE | D218: PORCA SEXTAVADA 3/8" | E218: UN | I218: 0.2 | J218: 0.22
B219: AGETOP_I | C219: 8 | D219: AJUDANTE | E219: h | F219: 0.009 | G219: 8.2 | H219: 9.51 | I219: 0.07 | J219: 0.09
G220: 0 | H220: 0 | I220: 0 | J220: 0
G221: 0 | H221: 0 | I221: 0 | J221: 0
B222: MÃO DE OBRA (B) - TOTAL | I222: 0.07 | J222: 0.09
B223: COTAÇÃO | C223: COT 013_SEE | D223: PORCA SEXTAVADA 3/8" | E223: UN | F223: 1 | G223: 0.13 | H223: 0.13 | I223: 0.13 | J223: 0.13
... 196 more rows
